Workbook

Sheet Post-operative wound care
D1: Redbridge
D2: Post-Operative Wound Care
D3: 01/04/2022 - 01/04/2023 | E3: Q4
D4: =INDEX('Control Panel'!$E$2:$E$17,COLUMN(A1)) -> Currently Registered Regular Patients | E4: =INDEX('Control Panel'!$E$2:$E$17,COLUMN(B1)) -> POWC 01 Post-operative wound care 2022 | F4: =INDEX('Control Panel'!$E$2:$E$17,COLUMN(C1)) -> 0 | G4: =INDEX('Control Panel'!$E$2:$E$17,COLUMN(D1)) -> POWC 01 Post-operative wound care activity | H4: =INDEX('Control Panel'!$E$2:$E$17,COLUMN(E1)) -> 0 | I4: =INDEX('Control Panel'!$E$2:$E$17,COLUMN(F1)) -> POWC 0101 Referral to tissue viability service | K4: =INDEX('Control Panel'!$E$2:$E$17,COLUMN(G1)) -> POWC 0102 Refer to district nurse | L4: =INDEX('Control Panel'!$E$2:$E$17,COLUMN(H1)) -> POWC 0103 Orthopaedic referral | P4: =INDEX('Control Panel'!$E$2:$E$17,COLUMN(I1)) -> POWC 0104 Advice given about wound care
D5: =INDEX('Control Panel'!$F$2:$F$10,COLUMN(A1)) -> Currently Registered Regular Patients | E5: =INDEX('Control Panel'!$F$2:$F$10,COLUMN(B1)) -> Patients with Post-operative wound care 2022-23 | F5: % | G5: =INDEX('Control Panel'!$F$2:$F$10,COLUMN(D1)) -> Post-operative wound care activity recorded 2022-23 | H5: % | I5: =INDEX('Control Panel'!$F$2:$F$10,COLUMN(F1)) -> Referral to tissue viability service | J5: % | K5: =INDEX('Control Panel'!$F$2:$F$10,COLUMN(G1)) -> Refer to district nurse | L5: % | M5: =INDEX('Control Panel'!$F$2:$F$10,COLUMN(H1)) -> Orthopaedic referral | N5: % | O5: =INDEX('Control Panel'!$F$2:$F$10,COLUMN(I1)) -> Advice given about wound care | P5: %
A6: ='Control Panel'!A5 -> RB-1 | B6: ='Control Panel'!B5 -> Cranbrook | C6: L1 | D6: =SUMIFS(D$13:D$54,$A$13:$A$54,$A6) -> 46123 | E6: =SUMIFS(E$13:E$54,$A$13:$A$54,$A6) -> 148 | F6: =SUM(E6/D6) -> 0.003208811222 | G6: =SUMIFS(G$13:G$20,$A$13:$A$20,$A6) -> 127 | H6: =SUM(G6/D6) -> 0.002753506927 | I6: =SUMIFS(I$13:I$54,$A$13:$A$54,$A6) -> 4 | J6: =SUM(I6/E6) -> 0.02702702703 | K6: =SUMIFS(K$13:K$54,$A$13:$A$54,$A6) -> 1 | L6: =SUM(K6/E6) -> 0.006756756757 | M6: =SUMIFS(M$13:M$54,$A$13:$A$54,$A6) -> 10 | N6: =SUM(M6/E6) -> 0.06756756757 | O6: =SUMIFS(O$13:O$54,$A$13:$A$54,$A6) -> 83 | P6: =SUM(O6/E6) -> 0.5608108108
A7: ='Control Panel'!A6 -> RB-2 | B7: ='Control Panel'!B6 -> Fairlop | C7: L2 | D7: =SUMIFS(D$13:D$54,$A$13:$A$54,$A7) -> 46556 | E7: 244 | F7: =SUM(E7/D7) -> 0.005241000086 | G7: =SUMIFS(G$13:G$54,$A$13:$A$54,$A7) -> 507 | H7: =SUM(G7/D7) -> 0.01089011083 | I7: =SUMIFS(I$13:I$54,$A$13:$A$54,$A7) -> 1 | J7: =SUM(I7/E7) -> 0.004098360656 | K7: =SUMIFS(K$13:K$54,$A$13:$A$54,$A7) -> 1 | L7: =SUM(K7/E7) -> 0.004098360656 | M7: 13 | N7: =SUM(M7/E7) -> 0.05327868852 | O7: 174 | P7: =SUM(O7/E7) -> 0.7131147541
A8: ='Control Panel'!A7 -> RB-3 | B8: ='Control Panel'!B7 -> Seven Kings | C8: L3 | D8: 50302 | E8: 141 | F8: 0.00280306946 | G8: =SUMIFS(G$13:G$54,$A$13:$A$54,$A8) -> 247 | H8: 0.004910341537 | I8: 1 | J8: 0.007092198582 | K8: 2 | L8: 0.01418439716 | M8: 9 | N8: 0.06382978723 | O8: 35 | P8: 0.2482269504
A9: ='Control Panel'!A8 -> RB-4 | B9: ='Control Panel'!B8 -> Wanstead & Woodford | C9: L4 | D9: 76237 | E9: 398 | F9: 0.005220562194 | G9: 706 | H9: 0.009260595249 | I9: 3 | J9: 0.007537688442 | K9: 12 | L9: 0.03015075377 | M9: 36 | N9: 0.09045226131 | O9: 122 | P9: 0.3065326633
A10: ='Control Panel'!A9 -> RB-5 | B10: ='Control Panel'!B9 -> Loxford | D10: 54963 | E10: 132 | F10: 0.002401615632 | G10: 19 | H10: 0.0003456870986 | I10: 4 | J10: 0.0303030303 | K10: 6 | L10: 0.04545454545 | M10: 11 | N10: 0.08333333333 | O10: 77 | P10: 0.5833333333
A11: ='Control Panel'!A10 -> RB-6 | B11: ='Control Panel'!B10 -> NewCross Alliance | D11: 34773 | E11: 66 | F11: 0.001898024329 | G11: =SUMIFS(G$13:G$54,$A$13:$A$54,$A11) -> 74 | H11: 0.002128087884 | I11: 0 | J11: 0 | K11: 0 | L11: 0 | M11: 4 | N11: 0.06060606061 | O11: 2 | P11: 0.0303030303
B12: Redbridge | C12: Total | D12: =SUM(D13:D54) -> 308954 | E12: =SUM(E13:E54) -> 1129 | F12: =SUM(E12/D12) -> 0.003654265684 | G12: =SUM(G13:G54) -> 1680 | H12: =SUM(G12/D12) -> 0.0054377027 | I12: =SUM(I13:I54) -> 13 | J12: =SUM(I12/E12) -> 0.0115146147 | K12: =SUM(K13:K54) -> 22 | L12: =SUM(K11/E11) -> 0 | M12: =SUM(M13:M54) -> 83 | N12: =SUM(M12/E12) -> 0.07351638618 | O12: =SUM(O13:O54) -> 493 | P12: =SUM(O12/E12) -> 0.4366696191
A13: RB-1 | B13: Drive Surgery | C13: F86652 | D13: =HLOOKUP($C13,'Composite Data'!$B$2:$AQ$9,MATCH('Post-operative wound care'!D$4,'Composite Data'!$A$2:$A$10,0),FALSE) -> 7227 | E13: =HLOOKUP($C13,'Composite Data'!$B$2:$AQ$9,MATCH('Post-operative wound care'!E$4,'Composite Data'!$A$2:$A$10,0),FALSE) -> 12 | F13: 0.001660440017 | G13: =HLOOKUP($C13,'Composite Data'!$B$2:$AQ$9,MATCH('Post-operative wound care'!G$4,'Composite Data'!$A$2:$A$10,0),FALSE) -> 20 | H13: 0.002767400028 | I13: =HLOOKUP($C13,'Composite Data'!$B$2:$AQ$9,MATCH('Post-operative wound care'!I$4,'Composite Data'!$A$2:$A$10,0),FALSE) -> 0 | J13: =IFERROR(SUM(I13/E13),"0.0"%) -> 0 | K13: =HLOOKUP($C13,'Composite Data'!$B$2:$AQ$9,MATCH('Post-operative wound care'!K$4,'Composite Data'!$A$2:$A$10,0),FALSE) -> 0 | L13: =IFERROR(SUM(K13/E13),"0.0%") -> 0 | M13: =HLOOKUP($C13,'Composite Data'!$B$2:$AQ$9,MATCH('Post-operative wound care'!L$4,'Composite Data'!$A$2:$A$10,0),FALSE) -> 2 | N13: =IFERROR(SUM(M13/E13),"0.0"%) -> 0.1666666667 | O13: =HLOOKUP($C13,'Composite Data'!$B$2:$AQ$9,MATCH('Post-operative wound care'!P$4,'Composite Data'!$A$2:$A$10,0),FALSE) -> 3 | P13: =IFERROR(SUM(O13/E13),"0.0"%) -> 0.25
A14: RB-1 | B14: St Clements Surgery | C14: F86702 | D14: =HLOOKUP($C14,'Composite Data'!$B$2:$AQ$9,MATCH('Post-operative wound care'!D$4,'Composite Data'!$A$2:$A$10,0),FALSE) -> 5186 | E14: =HLOOKUP($C14,'Composite Data'!$B$2:$AQ$9,MATCH('Post-operative wound care'!E$4,'Composite Data'!$A$2:$A$10,0),FALSE) -> 1 | F14: 0.0001928268415 | G14: =HLOOKUP($C14,'Composite Data'!$B$2:$AQ$9,MATCH('Post-operative wound care'!G$4,'Composite Data'!$A$2:$A$10,0),FALSE) -> 1 | H14: 0.0001928268415 | I14: =HLOOKUP($C14,'Composite Data'!$B$2:$AQ$9,MATCH('Post-operative wound care'!I$4,'Composite Data'!$A$2:$A$10,0),FALSE) -> 0 | J14: =IFERROR(SUM(I14/E14),"0.0"%) -> 0 | K14: =HLOOKUP($C14,'Composite Data'!$B$2:$AQ$9,MATCH('Post-operative wound care'!K$4,'Composite Data'!$A$2:$A$10,0),FALSE) -> 0 | L14: =IFERROR(SUM(K14/E14),"0.0%") -> 0 | M14: =HLOOKUP($C14,'Composite Data'!$B$2:$AQ$9,MATCH('Post-operative wound care'!L$4,'Composite Data'!$A$2:$A$10,0),FALSE) -> 1 | N14: =IFERROR(SUM(M14/E14),"0.0"%) -> 1 | O14: =HLOOKUP($C14,'Composite Data'!$B$2:$AQ$9,MATCH('Post-operative wound care'!P$4,'Composite Data'!$A$2:$A$10,0),FALSE) -> 0 | P14: =IFERROR(SUM(O14/E14),"0.0"%) -> 0
A15: RB-1 | B15: Granville Medical Centre | C15: Y00918 | D15: =HLOOKUP($C15,'Composite Data'!$B$2:$AQ$9,MATCH('Post-operative wound care'!D$4,'Composite Data'!$A$2:$A$10,0),FALSE) -> 6592 | E15: =HLOOKUP($C15,'Composite Data'!$B$2:$AQ$9,MATCH('Post-operative wound care'!E$4,'Composite Data'!$A$2:$A$10,0),FALSE) -> 30 | F15: 0.004550970874 | G15: =HLOOKUP($C15,'Composite Data'!$B$2:$AQ$9,MATCH('Post-operative wound care'!G$4,'Composite Data'!$A$2:$A$10,0),FALSE) -> 0 | H15: 0 | I15: =HLOOKUP($C15,'Composite Data'!$B$2:$AQ$9,MATCH('Post-operative wound care'!I$4,'Composite Data'!$A$2:$A$10,0),FALSE) -> 3 | J15: 0.1 | K15: =HLOOKUP($C15,'Composite Data'!$B$2:$AQ$9,MATCH('Post-operative wound care'!K$4,'Composite Data'!$A$2:$A$10,0),FALSE) -> 1 | L15: 0.03333333333 | M15: =HLOOKUP($C15,'Composite Data'!$B$2:$AQ$9,MATCH('Post-operative wound care'!L$4,'Composite Data'!$A$2:$A$10,0),FALSE) -> 1 | N15: 0.03333333333 | O15: =HLOOKUP($C15,'Composite Data'!$B$2:$AQ$9,MATCH('Post-operative wound care'!P$4,'Composite Data'!$A$2:$A$10,0),FALSE) -> 25 | P15: 0.8333333333
A16: RB-1 | B16: Balfour Road Surgery | C16: F86042 | D16: =HLOOKUP($C16,'Composite Data'!$B$2:$AQ$9,MATCH('Post-operative wound care'!D$4,'Composite Data'!$A$2:$A$10,0),FALSE) -> 6270 | E16: =HLOOKUP($C16,'Composite Data'!$B$2:$AQ$9,MATCH('Post-operative wound care'!E$4,'Composite Data'!$A$2:$A$10,0),FALSE) -> 33 | F16: 0.005263157895 | G16: =HLOOKUP($C16,'Composite Data'!$B$2:$AQ$9,MATCH('Post-operative wound care'!G$4,'Composite Data'!$A$2:$A$10,0),FALSE) -> 47 | H16: 0.007496012759 | I16: =HLOOKUP($C16,'Composite Data'!$B$2:$AQ$9,MATCH('Post-operative wound care'!I$4,'Composite Data'!$A$2:$A$10,0),FALSE) -> 1 | J16: 0.0303030303 | K16: =HLOOKUP($C16,'Composite Data'!$B$2:$AQ$9,MATCH('Post-operative wound care'!K$4,'Composite Data'!$A$2:$A$10,0),FALSE) -> 0 | L16: 0 | M16: =HLOOKUP($C16,'Composite Data'!$B$2:$AQ$9,MATCH('Post-operative wound care'!L$4,'Composite Data'!$A$2:$A$10,0),FALSE) -> 2 | N16: 0.06060606061 | O16: =HLOOKUP($C16,'Composite Data'!$B$2:$AQ$9,MATCH('Post-operative wound care'!P$4,'Composite Data'!$A$2:$A$10,0),FALSE) -> 22 | P16: 0.6666666667
A17: RB-1 | B17: Cranbrook Surgery | C17: F86698 | D17: =HLOOKUP($C17,'Composite Data'!$B$2:$AQ$9,MATCH('Post-operative wound care'!D$4,'Composite Data'!$A$2:$A$10,0),FALSE) -> 5433 | E17: =HLOOKUP($C17,'Composite Data'!$B$2:$AQ$9,MATCH('Post-operative wound care'!E$4,'Composite Data'!$A$2:$A$10,0),FALSE) -> 11 | F17: 0.00202466409 | G17: =HLOOKUP($C17,'Composite Data'!$B$2:$AQ$9,MATCH('Post-operative wound care'!G$4,'Composite Data'!$A$2:$A$10,0),FALSE) -> 17 | H17: 0.003129026321 | I17: =HLOOKUP($C17,'Composite Data'!$B$2:$AQ$9,MATCH('Post-operative wound care'!I$4,'Composite Data'!$A$2:$A$10,0),FALSE) -> 0 | J17: 0 | K17: =HLOOKUP($C17,'Composite Data'!$B$2:$AQ$9,MATCH('Post-operative wound care'!K$4,'Composite Data'!$A$2:$A$10,0),FALSE) -> 0 | L17: 0 | M17: =HLOOKUP($C17,'Composite Data'!$B$2:$AQ$9,MATCH('Post-operative wound care'!L$4,'Composite Data'!$A$2:$A$10,0),FALSE) -> 1 | N17: 0.09090909091 | O17: =HLOOKUP($C17,'Composite Data'!$B$2:$AQ$9,MATCH('Post-operative wound care'!P$4,'Composite Data'!$A$2:$A$10,0),FALSE) -> 2 | P17: 0.1818181818
A18: RB-1 | B18: Gants Hill Medical Centre | C18: F86008 | D18: =HLOOKUP($C18,'Composite Data'!$B$2:$AQ$9,MATCH('Post-operative wound care'!D$4,'Composite Data'!$A$2:$A$10,0),FALSE) -> 11581 | E18: =HLOOKUP($C18,'Composite Data'!$B$2:$AQ$9,MATCH('Post-operative wound care'!E$4,'Composite Data'!$A$2:$A$10,0),FALSE) -> 37 | F18: 0.003194888179 | G18: =HLOOKUP($C18,'Composite Data'!$B$2:$AQ$9,MATCH('Post-operative wound care'!G$4,'Composite Data'!$A$2:$A$10,0),FALSE) -> 42 | H18: 0.003626629825 | I18: =HLOOKUP($C18,'Composite Data'!$B$2:$AQ$9,MATCH('Post-operative wound care'!I$4,'Composite Data'!$A$2:$A$10,0),FALSE) -> 0 | J18: 0 | K18: =HLOOKUP($C18,'Composite Data'!$B$2:$AQ$9,MATCH('Post-operative wound care'!K$4,'Composite Data'!$A$2:$A$10,0),FALSE) -> 0 | L18: 0 | M18: =HLOOKUP($C18,'Composite Data'!$B$2:$AQ$9,MATCH('Post-operative wound care'!L$4,'Composite Data'!$A$2:$A$10,0),FALSE) -> 2 | N18: 0.05405405405 | O18: =HLOOKUP($C18,'Composite Data'!$B$2:$AQ$9,MATCH('Post-operative wound care'!P$4,'Composite Data'!$A$2:$A$10,0),FALSE) -> 31 | P18: 0.8378378378
A19: RB-1 | B19: Redbridge Surgery | C19: F86703 | D19: =HLOOKUP($C19,'Composite Data'!$B$2:$AQ$9,MATCH('Post-operative wound care'!D$4,'Composite Data'!$A$2:$A$10,0),FALSE) -> 3834 | E19: =HLOOKUP($C19,'Composite Data'!$B$2:$AQ$9,MATCH('Post-operative wound care'!E$4,'Composite Data'!$A$2:$A$10,0),FALSE) -> 24 | F19: 0.006259780908 | G19: =HLOOKUP($C19,'Composite Data'!$B$2:$AQ$9,MATCH('Post-operative wound care'!G$4,'Composite Data'!$A$2:$A$10,0),FALSE) -> 0 | H19: 0 | I19: =HLOOKUP($C19,'Composite Data'!$B$2:$AQ$9,MATCH('Post-operative wound care'!I$4,'Composite Data'!$A$2:$A$10,0),FALSE) -> 0 | J19: 0 | K19: =HLOOKUP($C19,'Composite Data'!$B$2:$AQ$9,MATCH('Post-operative wound care'!K$4,'Composite Data'!$A$2:$A$10,0),FALSE) -> 0 | L19: 0 | M19: =HLOOKUP($C19,'Composite Data'!$B$2:$AQ$9,MATCH('Post-operative wound care'!L$4,'Composite Data'!$A$2:$A$10,0),FALSE) -> 1 | N19: 0.04166666667 | O19: =HLOOKUP($C19,'Composite Data'!$B$2:$AQ$9,MATCH('Post-operative wound care'!P$4,'Composite Data'!$A$2:$A$10,0),FALSE) -> 0 | P19: 0
A20: RB-1 | B20: York Road Surgery | C20: F86657 | D20: =HLOOKUP($C20,'Composite Data'!$B$2:$AQ$9,MATCH('Post-operative wound care'!D$4,'Composite Data'!$A$2:$A$10,0),FALSE) -> 8355 | E20: =HLOOKUP($C20,'Composite Data'!$B$2:$AQ$9,MATCH('Post-operative wound care'!E$4,'Composite Data'!$A$2:$A$10,0),FALSE) -> 27 | F20: 0.003231597846 | G20: 0 | H20: 0 | I20: 0 | J20: 0 | K20: =HLOOKUP($C20,'Composite Data'!$B$2:$AQ$9,MATCH('Post-operative wound care'!K$4,'Composite Data'!$A$2:$A$10,0),FALSE) -> 0 | L20: 0 | M20: =HLOOKUP($C20,'Composite Data'!$B$2:$AQ$9,MATCH('Post-operative wound care'!L$4,'Composite Data'!$A$2:$A$10,0),FALSE) -> 1 | N20: 0.03703703704 | O20: =HLOOKUP($C20,'Composite Data'!$B$2:$AQ$9,MATCH('Post-operative wound care'!P$4,'Composite Data'!$A$2:$A$10,0),FALSE) -> 0 | P20: 0
A21: RB-2 | B21: Kenwood Medical Centre | C21: F86081 | D21: =HLOOKUP($C21,'Composite Data'!$B$2:$AQ$9,MATCH('Post-operative wound care'!D$4,'Composite Data'!$A$2:$A$10,0),FALSE) -> 6454 | E21: =HLOOKUP($C21,'Composite Data'!$B$2:$AQ$9,MATCH('Post-operative wound care'!E$4,'Composite Data'!$A$2:$A$10,0),FALSE) -> 11 | F21: 0.001704369383 | G21: =HLOOKUP($C21,'Composite Data'!$B$2:$AQ$9,MATCH('Post-operative wound care'!G$4,'Composite Data'!$A$2:$A$10,0),FALSE) -> 17 | H21: 0.002634025411 | I21: =HLOOKUP($C21,'Composite Data'!$B$2:$AQ$9,MATCH('Post-operative wound care'!I$4,'Composite Data'!$A$2:$A$10,0),FALSE) -> 0 | J21: 0 | K21: =HLOOKUP($C21,'Composite Data'!$B$2:$AQ$9,MATCH('Post-operative wound care'!K$4,'Composite Data'!$A$2:$A$10,0),FALSE) -> 0 | L21: 0 | M21: =HLOOKUP($C21,'Composite Data'!$B$2:$AQ$9,MATCH('Post-operative wound care'!L$4,'Composite Data'!$A$2:$A$10,0),FALSE) -> 1 | N21: 0.09090909091 | O21: =HLOOKUP($C21,'Composite Data'!$B$2:$AQ$9,MATCH('Post-operative wound care'!P$4,'Composite Data'!$A$2:$A$10,0),FALSE) -> 0 | P21: 0
A22: RB-2 | B22: Eastern Avenue Medical Centre | C22: F86083 | D22: =HLOOKUP($C22,'Composite Data'!$B$2:$AQ$9,MATCH('Post-operative wound care'!D$4,'Composite Data'!$A$2:$A$10,0),FALSE) -> 6785 | E22: =HLOOKUP($C22,'Composite Data'!$B$2:$AQ$9,MATCH('Post-operative wound care'!E$4,'Composite Data'!$A$2:$A$10,0),FALSE) -> 27 | F22: 0.003979366249 | G22: =HLOOKUP($C22,'Composite Data'!$B$2:$AQ$9,MATCH('Post-operative wound care'!G$4,'Composite Data'!$A$2:$A$10,0),FALSE) -> 30 | H22: 0.004421518055 | I22: =HLOOKUP($C22,'Composite Data'!$B$2:$AQ$9,MATCH('Post-operative wound care'!I$4,'Composite Data'!$A$2:$A$10,0),FALSE) -> 0 | J22: 0 | K22: =HLOOKUP($C22,'Composite Data'!$B$2:$AQ$9,MATCH('Post-operative wound care'!K$4,'Composite Data'!$A$2:$A$10,0),FALSE) -> 0 | L22: 0 | M22: =HLOOKUP($C22,'Composite Data'!$B$2:$AQ$9,MATCH('Post-operative wound care'!L$4,'Composite Data'!$A$2:$A$10,0),FALSE) -> 4 | N22: 0.1481481481 | O22: =HLOOKUP($C22,'Composite Data'!$B$2:$AQ$9,MATCH('Post-operative wound care'!P$4,'Composite Data'!$A$2:$A$10,0),FALSE) -> 5 | P22: 0.1851851852
A23: RB-2 | B23: Fullwell Avenue Surgery | C23: F86612 | D23: =HLOOKUP($C23,'Composite Data'!$B$2:$AQ$9,MATCH('Post-operative wound care'!D$4,'Composite Data'!$A$2:$A$10,0),FALSE) -> 3307 | E23: =HLOOKUP($C23,'Composite Data'!$B$2:$AQ$9,MATCH('Post-operative wound care'!E$4,'Composite Data'!$A$2:$A$10,0),FALSE) -> 10 | F23: 0.003023888721 | G23: =HLOOKUP($C23,'Composite Data'!$B$2:$AQ$9,MATCH('Post-operative wound care'!G$4,'Composite Data'!$A$2:$A$10,0),FALSE) -> 16 | H23: 0.004838221953 | I23: =HLOOKUP($C23,'Composite Data'!$B$2:$AQ$9,MATCH('Post-operative wound care'!I$4,'Composite Data'!$A$2:$A$10,0),FALSE) -> 0 | J23: 0 | K23: =HLOOKUP($C23,'Composite Data'!$B$2:$AQ$9,MATCH('Post-operative wound care'!K$4,'Composite Data'!$A$2:$A$10,0),FALSE) -> 0 | L23: 0 | M23: =HLOOKUP($C23,'Composite Data'!$B$2:$AQ$9,MATCH('Post-operative wound care'!L$4,'Composite Data'!$A$2:$A$10,0),FALSE) -> 2 | N23: 0.2 | O23: =HLOOKUP($C23,'Composite Data'!$B$2:$AQ$9,MATCH('Post-operative wound care'!P$4,'Composite Data'!$A$2:$A$10,0),FALSE) -> 4 | P23: 0.4
A24: RB-2 | B24: Heathcote Primary Care Centre | C24: F86624 | D24: =HLOOKUP($C24,'Composite Data'!$B$2:$AQ$9,MATCH('Post-operative wound care'!D$4,'Composite Data'!$A$2:$A$10,0),FALSE) -> 3122 | E24: =HLOOKUP($C24,'Composite Data'!$B$2:$AQ$9,MATCH('Post-operative wound care'!E$4,'Composite Data'!$A$2:$A$10,0),FALSE) -> 2 | F24: 0.0006406149904 | G24: =HLOOKUP($C24,'Composite Data'!$B$2:$AQ$9,MATCH('Post-operative wound care'!G$4,'Composite Data'!$A$2:$A$10,0),FALSE) -> 2 | H24: 0.0006406149904 | I24: =HLOOKUP($C24,'Composite Data'!$B$2:$AQ$9,MATCH('Post-operative wound care'!I$4,'Composite Data'!$A$2:$A$10,0),FALSE) -> 0 | J24: 0 | K24: =HLOOKUP($C24,'Composite Data'!$B$2:$AQ$9,MATCH('Post-operative wound care'!K$4,'Composite Data'!$A$2:$A$10,0),FALSE) -> 0 | L24: 0 | M24: =HLOOKUP($C24,'Composite Data'!$B$2:$AQ$9,MATCH('Post-operative wound care'!L$4,'Composite Data'!$A$2:$A$10,0),FALSE) -> 0 | N24: 0 | O24: =HLOOKUP($C24,'Composite Data'!$B$2:$AQ$9,MATCH('Post-operative wound care'!P$4,'Composite Data'!$A$2:$A$10,0),FALSE) -> 1 | P24: 0.5
A25: RB-2 | B25: Fencepiece Road Medical Practice | C25: F86707 | D25: =HLOOKUP($C25,'Composite Data'!$B$2:$AQ$9,MATCH('Post-operative wound care'!D$4,'Composite Data'!$A$2:$A$10,0),FALSE) -> 6752 | E25: =HLOOKUP($C25,'Composite Data'!$B$2:$AQ$9,MATCH('Post-operative wound care'!E$4,'Composite Data'!$A$2:$A$10,0),FALSE) -> 14 | F25: 0.002073459716 | G25: =HLOOKUP($C25,'Composite Data'!$B$2:$AQ$9,MATCH('Post-operative wound care'!G$4,'Composite Data'!$A$2:$A$10,0),FALSE) -> 0 | H25: 0 | I25: =HLOOKUP($C25,'Composite Data'!$B$2:$AQ$9,MATCH('Post-operative wound care'!I$4,'Composite Data'!$A$2:$A$10,0),FALSE) -> 0 | J25: 0 | K25: =HLOOKUP($C25,'Composite Data'!$B$2:$AQ$9,MATCH('Post-operative wound care'!K$4,'Composite Data'!$A$2:$A$10,0),FALSE) -> 0 | L25: 0 | M25: =HLOOKUP($C25,'Composite Data'!$B$2:$AQ$9,MATCH('Post-operative wound care'!L$4,'Composite Data'!$A$2:$A$10,0),FALSE) -> 0 | N25: 0 | O25: =HLOOKUP($C25,'Composite Data'!$B$2:$AQ$9,MATCH('Post-operative wound care'!P$4,'Composite Data'!$A$2:$A$10,0),FALSE) -> 7 | P25: 0.5
A26: RB-2 | B26: The Willows Practice | C26: F86057 | D26: =HLOOKUP($C26,'Composite Data'!$B$2:$AQ$9,MATCH('Post-operative wound care'!D$4,'Composite Data'!$A$2:$A$10,0),FALSE) -> 6471 | E26: =HLOOKUP($C26,'Composite Data'!$B$2:$AQ$9,MATCH('Post-operative wound care'!E$4,'Composite Data'!$A$2:$A$10,0),FALSE) -> 15 | F26: 0.002318034307 | G26: =HLOOKUP($C26,'Composite Data'!$B$2:$AQ$9,MATCH('Post-operative wound care'!G$4,'Composite Data'!$A$2:$A$10,0),FALSE) -> 23 | H26: 0.003554319271 | I26: =HLOOKUP($C26,'Composite Data'!$B$2:$AQ$9,MATCH('Post-operative wound care'!I$4,'Composite Data'!$A$2:$A$10,0),FALSE) -> 0 | J26: 0 | K26: =HLOOKUP($C26,'Composite Data'!$B$2:$AQ$9,MATCH('Post-operative wound care'!K$4,'Composite Data'!$A$2:$A$10,0),FALSE) -> 0 | L26: 0 | M26: =HLOOKUP($C26,'Composite Data'!$B$2:$AQ$9,MATCH('Post-operative wound care'!L$4,'Composite Data'!$A$2:$A$10,0),FALSE) -> 2 | N26: 0.1333333333 | O26: =HLOOKUP($C26,'Composite Data'!$B$2:$AQ$9,MATCH('Post-operative wound care'!P$4,'Composite Data'!$A$2:$A$10,0),FALSE) -> 2 | P26: 0.1333333333
A27: RB-2 | B27: Forest Edge Practice | C27: F86007 | D27: =HLOOKUP($C27,'Composite Data'!$B$2:$AQ$9,MATCH('Post-operative wound care'!D$4,'Composite Data'!$A$2:$A$10,0),FALSE) -> 13665 | E27: =HLOOKUP($C27,'Composite Data'!$B$2:$AQ$9,MATCH('Post-operative wound care'!E$4,'Composite Data'!$A$2:$A$10,0),FALSE) -> 165 | F27: 0.01207464325 | G27: =HLOOKUP($C27,'Composite Data'!$B$2:$AQ$9,MATCH('Post-operative wound care'!G$4,'Composite Data'!$A$2:$A$10,0),FALSE) -> 419 | H27: 0.03066227589 | I27: =HLOOKUP($C27,'Composite Data'!$B$2:$AQ$9,MATCH('Post-operative wound care'!I$4,'Composite Data'!$A$2:$A$10,0),FALSE) -> 1 | J27: 0.006060606061 | K27: =HLOOKUP($C27,'Composite Data'!$B$2:$AQ$9,MATCH('Post-operative wound care'!K$4,'Composite Data'!$A$2:$A$10,0),FALSE) -> 1 | L27: 0.006060606061 | M27: =HLOOKUP($C27,'Composite Data'!$B$2:$AQ$9,MATCH('Post-operative wound care'!L$4,'Composite Data'!$A$2:$A$10,0),FALSE) -> 4 | N27: 0.02424242424 | O27: =HLOOKUP($C27,'Composite Data'!$B$2:$AQ$9,MATCH('Post-operative wound care'!P$4,'Composite Data'!$A$2:$A$10,0),FALSE) -> 155 | P27: 0.9393939394
A28: RB-3 | B28: The Palms Medical Centre | C28: F86009 | D28: =HLOOKUP($C28,'Composite Data'!$B$2:$AQ$9,MATCH('Post-operative wound care'!D$4,'Composite Data'!$A$2:$A$10,0),FALSE) -> 7561 | E28: =HLOOKUP($C28,'Composite Data'!$B$2:$AQ$9,MATCH('Post-operative wound care'!E$4,'Composite Data'!$A$2:$A$10,0),FALSE) -> 39 | F28: 0.005158047877 | G28: =HLOOKUP($C28,'Composite Data'!$B$2:$AQ$9,MATCH('Post-operative wound care'!G$4,'Composite Data'!$A$2:$A$10,0),FALSE) -> 51 | H28: 0.006745139532 | I28: =HLOOKUP($C28,'Composite Data'!$B$2:$AQ$9,MATCH('Post-operative wound care'!I$4,'Composite Data'!$A$2:$A$10,0),FALSE) -> 1 | J28: 0.02564102564 | K28: =HLOOKUP($C28,'Composite Data'!$B$2:$AQ$9,MATCH('Post-operative wound care'!K$4,'Composite Data'!$A$2:$A$10,0),FALSE) -> 1 | L28: 0.02564102564 | M28: =HLOOKUP($C28,'Composite Data'!$B$2:$AQ$9,MATCH('Post-operative wound care'!L$4,'Composite Data'!$A$2:$A$10,0),FALSE) -> 3 | N28: 0.07692307692 | O28: =HLOOKUP($C28,'Composite Data'!$B$2:$AQ$9,MATCH('Post-operative wound care'!P$4,'Composite Data'!$A$2:$A$10,0),FALSE) -> 0 | P28: 0
A29: RB-3 | B29: Goodmayes Medical Centre | C29: F86087 | D29: =HLOOKUP($C29,'Composite Data'!$B$2:$AQ$9,MATCH('Post-operative wound care'!D$4,'Composite Data'!$A$2:$A$10,0),FALSE) -> 7626 | E29: =HLOOKUP($C29,'Composite Data'!$B$2:$AQ$9,MATCH('Post-operative wound care'!E$4,'Composite Data'!$A$2:$A$10,0),FALSE) -> 12 | F29: 0.001573564123 | G29: =HLOOKUP($C29,'Composite Data'!$B$2:$AQ$9,MATCH('Post-operative wound care'!G$4,'Composite Data'!$A$2:$A$10,0),FALSE) -> 15 | H29: 0.001966955153 | I29: =HLOOKUP($C29,'Composite Data'!$B$2:$AQ$9,MATCH('Post-operative wound care'!I$4,'Composite Data'!$A$2:$A$10,0),FALSE) -> 0 | J29: 0 | K29: =HLOOKUP($C29,'Composite Data'!$B$2:$AQ$9,MATCH('Post-operative wound care'!K$4,'Composite Data'!$A$2:$A$10,0),FALSE) -> 0 | L29: 0 | M29: =HLOOKUP($C29,'Composite Data'!$B$2:$AQ$9,MATCH('Post-operative wound care'!L$4,'Composite Data'!$A$2:$A$10,0),FALSE) -> 2 | N29: 0.1666666667 | O29: =HLOOKUP($C29,'Composite Data'!$B$2:$AQ$9,MATCH('Post-operative wound care'!P$4,'Composite Data'!$A$2:$A$10,0),FALSE) -> 3 | P29: 0.25
A30: RB-3 | B30: Seven Kings Practice | C30: F86637 | D30: =HLOOKUP($C30,'Composite Data'!$B$2:$AQ$9,MATCH('Post-operative wound care'!D$4,'Composite Data'!$A$2:$A$10,0),FALSE) -> 4918 | E30: =HLOOKUP($C30,'Composite Data'!$B$2:$AQ$9,MATCH('Post-operative wound care'!E$4,'Composite Data'!$A$2:$A$10,0),FALSE) -> 11 | F30: 0.002236681578 | G30: =HLOOKUP($C30,'Composite Data'!$B$2:$AQ$9,MATCH('Post-operative wound care'!G$4,'Composite Data'!$A$2:$A$10,0),FALSE) -> 14 | H30: 0.002846685645 | I30: =HLOOKUP($C30,'Composite Data'!$B$2:$AQ$9,MATCH('Post-operative wound care'!I$4,'Composite Data'!$A$2:$A$10,0),FALSE) -> 0 | J30: 0 | K30: =HLOOKUP($C30,'Composite Data'!$B$2:$AQ$9,MATCH('Post-operative wound care'!K$4,'Composite Data'!$A$2:$A$10,0),FALSE) -> 0 | L30: 0 | M30: =HLOOKUP($C30,'Composite Data'!$B$2:$AQ$9,MATCH('Post-operative wound care'!L$4,'Composite Data'!$A$2:$A$10,0),FALSE) -> 0 | N30: 0 | O30: =HLOOKUP($C30,'Composite Data'!$B$2:$AQ$9,MATCH('Post-operative wound care'!P$4,'Composite Data'!$A$2:$A$10,0),FALSE) -> 0 | P30: 0
A31: RB-3 | B31: Doctor's House | C31: Y00090 | D31: =HLOOKUP($C31,'Composite Data'!$B$2:$AQ$9,MATCH('Post-operative wound care'!D$4,'Composite Data'!$A$2:$A$10,0),FALSE) -> 8283 | E31: =HLOOKUP($C31,'Composite Data'!$B$2:$AQ$9,MATCH('Post-operative wound care'!E$4,'Composite Data'!$A$2:$A$10,0),FALSE) -> 4 | F31: 0.0004829168176 | G31: =HLOOKUP($C31,'Composite Data'!$B$2:$AQ$9,MATCH('Post-operative wound care'!G$4,'Composite Data'!$A$2:$A$10,0),FALSE) -> 0 | H31: 0 | I31: =HLOOKUP($C31,'Composite Data'!$B$2:$AQ$9,MATCH('Post-operative wound care'!I$4,'Composite Data'!$A$2:$A$10,0),FALSE) -> 0 | J31: 0 | K31: =HLOOKUP($C31,'Composite Data'!$B$2:$AQ$9,MATCH('Post-operative wound care'!K$4,'Composite Data'!$A$2:$A$10,0),FALSE) -> 0 | L31: 0 | M31: =HLOOKUP($C31,'Composite Data'!$B$2:$AQ$9,MATCH('Post-operative wound care'!L$4,'Composite Data'!$A$2:$A$10,0),FALSE) -> 0 | N31: 0 | O31: =HLOOKUP($C31,'Composite Data'!$B$2:$AQ$9,MATCH('Post-operative wound care'!P$4,'Composite Data'!$A$2:$A$10,0),FALSE) -> 0 | P31: 0
A32: RB-3 | B32: Green Lane, Goodmayes Medical practice | C32: F86034 | D32: =HLOOKUP($C32,'Composite Data'!$B$2:$AQ$9,MATCH('Post-operative wound care'!D$4,'Composite Data'!$A$2:$A$10,0),FALSE) -> 6154 | E32: =HLOOKUP($C32,'Composite Data'!$B$2:$AQ$9,MATCH('Post-operative wound care'!E$4,'Composite Data'!$A$2:$A$10,0),FALSE) -> 0 | F32: 0 | G32: =HLOOKUP($C32,'Composite Data'!$B$2:$AQ$9,MATCH('Post-operative wound care'!G$4,'Composite Data'!$A$2:$A$10,0),FALSE) -> 0 | H32: 0 | I32: =HLOOKUP($C32,'Composite Data'!$B$2:$AQ$9,MATCH('Post-operative wound care'!I$4,'Composite Data'!$A$2:$A$10,0),FALSE) -> 0 | J32: 0 | K32: =HLOOKUP($C32,'Composite Data'!$B$2:$AQ$9,MATCH('Post-operative wound care'!K$4,'Composite Data'!$A$2:$A$10,0),FALSE) -> 0 | L32: 0.0% | M32: =HLOOKUP($C32,'Composite Data'!$B$2:$AQ$9,MATCH('Post-operative wound care'!L$4,'Composite Data'!$A$2:$A$10,0),FALSE) -> 0 | N32: 0 | O32: =HLOOKUP($C32,'Composite Data'!$B$2:$AQ$9,MATCH('Post-operative wound care'!P$4,'Composite Data'!$A$2:$A$10,0),FALSE) -> 0 | P32: 0
A33: RB-3 | B33: Castleton Road Surgery | C33: F86642 | D33: =HLOOKUP($C33,'Composite Data'!$B$2:$AQ$9,MATCH('Post-operative wound care'!D$4,'Composite Data'!$A$2:$A$10,0),FALSE) -> 5086 | E33: =HLOOKUP($C33,'Composite Data'!$B$2:$AQ$9,MATCH('Post-operative wound care'!E$4,'Composite Data'!$A$2:$A$10,0),FALSE) -> 4 | F33: 0.0007864726701 | G33: =HLOOKUP($C33,'Composite Data'!$B$2:$AQ$9,MATCH('Post-operative wound care'!G$4,'Composite Data'!$A$2:$A$10,0),FALSE) -> 4 | H33: 0.0007864726701 | I33: =HLOOKUP($C33,'Composite Data'!$B$2:$AQ$9,MATCH('Post-operative wound care'!I$4,'Composite Data'!$A$2:$A$10,0),FALSE) -> 0 | J33: 0 | K33: =HLOOKUP($C33,'Composite Data'!$B$2:$AQ$9,MATCH('Post-operative wound care'!K$4,'Composite Data'!$A$2:$A$10,0),FALSE) -> 0 | L33: 0 | M33: =HLOOKUP($C33,'Composite Data'!$B$2:$AQ$9,MATCH('Post-operative wound care'!L$4,'Composite Data'!$A$2:$A$10,0),FALSE) -> 1 | N33: 0.25 | O33: =HLOOKUP($C33,'Composite Data'!$B$2:$AQ$9,MATCH('Post-operative wound care'!P$4,'Composite Data'!$A$2:$A$10,0),FALSE) -> 0 | P33: 0
A34: RB-3 | B34: Chadwell Heath Surgery | C34: F86028 | D34: =HLOOKUP($C34,'Composite Data'!$B$2:$AQ$9,MATCH('Post-operative wound care'!D$4,'Composite Data'!$A$2:$A$10,0),FALSE) -> 10674 | E34: =HLOOKUP($C34,'Composite Data'!$B$2:$AQ$9,MATCH('Post-operative wound care'!E$4,'Composite Data'!$A$2:$A$10,0),FALSE) -> 71 | F34: 0.006651676972 | G34: =HLOOKUP($C34,'Composite Data'!$B$2:$AQ$9,MATCH('Post-operative wound care'!G$4,'Composite Data'!$A$2:$A$10,0),FALSE) -> 163 | H34: 0.01527075136 | I34: =HLOOKUP($C34,'Composite Data'!$B$2:$AQ$9,MATCH('Post-operative wound care'!I$4,'Composite Data'!$A$2:$A$10,0),FALSE) -> 0 | J34: 0 | K34: =HLOOKUP($C34,'Composite Data'!$B$2:$AQ$9,MATCH('Post-operative wound care'!K$4,'Composite Data'!$A$2:$A$10,0),FALSE) -> 1 | L34: 0.01408450704 | M34: =HLOOKUP($C34,'Composite Data'!$B$2:$AQ$9,MATCH('Post-operative wound care'!L$4,'Composite Data'!$A$2:$A$10,0),FALSE) -> 3 | N34: 0.04225352113 | O34: =HLOOKUP($C34,'Composite Data'!$B$2:$AQ$9,MATCH('Post-operative wound care'!P$4,'Composite Data'!$A$2:$A$10,0),FALSE) -> 32 | P34: 0.4507042254
A35: RB-3 | B35: Grove Surgery | C35: Y00155 | D35: =HLOOKUP($C35,'Composite Data'!$B$2:$AQ$9,MATCH('Post-operative wound care'!D$4,'Composite Data'!$A$2:$A$10,0),FALSE) -> 10075 | E35: =HLOOKUP($C35,'Composite Data'!$B$2:$AQ$9,MATCH('Post-operative wound care'!E$4,'Composite Data'!$A$2:$A$10,0),FALSE) -> 1 | F35: 9.925558313e-05 | G35: 0 | H35: 0 | I35: 0 | J35: 0 | K35: =HLOOKUP($C35,'Composite Data'!$B$2:$AQ$9,MATCH('Post-operative wound care'!K$4,'Composite Data'!$A$2:$A$10,0),FALSE) -> 0 | L35: 0 | M35: =HLOOKUP($C35,'Composite Data'!$B$2:$AQ$9,MATCH('Post-operative wound care'!L$4,'Composite Data'!$A$2:$A$10,0),FALSE) -> 1 | N35: 1 | O35: =HLOOKUP($C35,'Composite Data'!$B$2:$AQ$9,MATCH('Post-operative wound care'!P$4,'Composite Data'!$A$2:$A$10,0),FALSE) -> 0 | P35: 0
A36: RB-4 | B36: Broadway Surgery | C36: F86013 | D36: =HLOOKUP($C36,'Composite Data'!$B$2:$AQ$9,MATCH('Post-operative wound care'!D$4,'Composite Data'!$A$2:$A$10,0),FALSE) -> 7149 | E36: =HLOOKUP($C36,'Composite Data'!$B$2:$AQ$9,MATCH('Post-operative wound care'!E$4,'Composite Data'!$A$2:$A$10,0),FALSE) -> 27 | F36: 0.003776751993 | G36: 0 | H36: 0 | I36: 0 | J36: 0 | K36: =HLOOKUP($C36,'Composite Data'!$B$2:$AQ$9,MATCH('Post-operative wound care'!K$4,'Composite Data'!$A$2:$A$10,0),FALSE) -> 1 | L36: 0.03703703704 | M36: =HLOOKUP($C36,'Composite Data'!$B$2:$AQ$9,MATCH('Post-operative wound care'!L$4,'Composite Data'!$A$2:$A$10,0),FALSE) -> 2 | N36: 0.07407407407 | O36: =HLOOKUP($C36,'Composite Data'!$B$2:$AQ$9,MATCH('Post-operative wound care'!P$4,'Composite Data'!$A$2:$A$10,0),FALSE) -> 1 | P36: 0.03703703704
A37: RB-4 | B37: The Evergreen Practice | C37: F86023 | D37: =HLOOKUP($C37,'Composite Data'!$B$2:$AQ$9,MATCH('Post-operative wound care'!D$4,'Composite Data'!$A$2:$A$10,0),FALSE) -> 9894 | E37: =HLOOKUP($C37,'Composite Data'!$B$2:$AQ$9,MATCH('Post-operative wound care'!E$4,'Composite Data'!$A$2:$A$10,0),FALSE) -> 86 | F37: 0.008692136648 | G37: =HLOOKUP($C37,'Composite Data'!$B$2:$AQ$9,MATCH('Post-operative wound care'!G$4,'Composite Data'!$A$2:$A$10,0),FALSE) -> 168 | H37: 0.01697998787 | I37: =HLOOKUP($C37,'Composite Data'!$B$2:$AQ$9,MATCH('Post-operative wound care'!I$4,'Composite Data'!$A$2:$A$10,0),FALSE) -> 0 | J37: 0 | K37: =HLOOKUP($C37,'Composite Data'!$B$2:$AQ$9,MATCH('Post-operative wound care'!K$4,'Composite Data'!$A$2:$A$10,0),FALSE) -> 1 | L37: 0.01162790698 | M37: =HLOOKUP($C37,'Composite Data'!$B$2:$AQ$9,MATCH('Post-operative wound care'!L$4,'Composite Data'!$A$2:$A$10,0),FALSE) -> 6 | N37: 0.06976744186 | O37: =HLOOKUP($C37,'Composite Data'!$B$2:$AQ$9,MATCH('Post-operative wound care'!P$4,'Composite Data'!$A$2:$A$10,0),FALSE) -> 60 | P37: 0.6976744186
A38: RB-4 | B38: Wanstead Place Surgery | C38: F86032 | D38: =HLOOKUP($C38,'Composite Data'!$B$2:$AQ$9,MATCH('Post-operative wound care'!D$4,'Composite Data'!$A$2:$A$10,0),FALSE) -> 9305 | E38: =HLOOKUP($C38,'Composite Data'!$B$2:$AQ$9,MATCH('Post-operative wound care'!E$4,'Composite Data'!$A$2:$A$10,0),FALSE) -> 54 | F38: 0.005803331542 | G38: =HLOOKUP($C38,'Composite Data'!$B$2:$AQ$9,MATCH('Post-operative wound care'!G$4,'Composite Data'!$A$2:$A$10,0),FALSE) -> 144 | H38: 0.01547555078 | I38: =HLOOKUP($C38,'Composite Data'!$B$2:$AQ$9,MATCH('Post-operative wound care'!I$4,'Composite Data'!$A$2:$A$10,0),FALSE) -> 0 | J38: 0 | K38: =HLOOKUP($C38,'Composite Data'!$B$2:$AQ$9,MATCH('Post-operative wound care'!K$4,'Composite Data'!$A$2:$A$10,0),FALSE) -> 3 | L38: 0.05555555556 | M38: =HLOOKUP($C38,'Composite Data'!$B$2:$AQ$9,MATCH('Post-operative wound care'!L$4,'Composite Data'!$A$2:$A$10,0),FALSE) -> 3 | N38: 0.05555555556 | O38: =HLOOKUP($C38,'Composite Data'!$B$2:$AQ$9,MATCH('Post-operative wound care'!P$4,'Composite Data'!$A$2:$A$10,0),FALSE) -> 19 | P38: 0.3518518519
A39: RB-4 | B39: Aldersbrook Medical Centre | C39: F86731 | D39: =HLOOKUP($C39,'Composite Data'!$B$2:$AQ$9,MATCH('Post-operative wound care'!D$4,'Composite Data'!$A$2:$A$10,0),FALSE) -> 4627 | E39: =HLOOKUP($C39,'Composite Data'!$B$2:$AQ$9,MATCH('Post-operative wound care'!E$4,'Composite Data'!$A$2:$A$10,0),FALSE) -> 18 | F39: 0.003890209639 | G39: =HLOOKUP($C39,'Composite Data'!$B$2:$AQ$9,MATCH('Post-operative wound care'!G$4,'Composite Data'!$A$2:$A$10,0),FALSE) -> 0 | H39: 0 | I39: =HLOOKUP($C39,'Composite Data'!$B$2:$AQ$9,MATCH('Post-operative wound care'!I$4,'Composite Data'!$A$2:$A$10,0),FALSE) -> 0 | J39: 0 | K39: =HLOOKUP($C39,'Composite Data'!$B$2:$AQ$9,MATCH('Post-operative wound care'!K$4,'Composite Data'!$A$2:$A$10,0),FALSE) -> 0 | L39: 0 | M39: =HLOOKUP($C39,'Composite Data'!$B$2:$AQ$9,MATCH('Post-operative wound care'!L$4,'Composite Data'!$A$2:$A$10,0),FALSE) -> 2 | N39: 0.1111111111 | O39: =HLOOKUP($C39,'Composite Data'!$B$2:$AQ$9,MATCH('Post-operative wound care'!P$4,'Composite Data'!$A$2:$A$10,0),FALSE) -> 0 | P39: 0
A40: RB-4 | B40: Southdene Surgery | C40: F86066 | D40: =HLOOKUP($C40,'Composite Data'!$B$2:$AQ$9,MATCH('Post-operative wound care'!D$4,'Composite Data'!$A$2:$A$10,0),FALSE) -> 7890 | E40: =HLOOKUP($C40,'Composite Data'!$B$2:$AQ$9,MATCH('Post-operative wound care'!E$4,'Composite Data'!$A$2:$A$10,0),FALSE) -> 93 | F40: 0.01178707224 | G40: =HLOOKUP($C40,'Composite Data'!$B$2:$AQ$9,MATCH('Post-operative wound care'!G$4,'Composite Data'!$A$2:$A$10,0),FALSE) -> 175 | H40: 0.02217997465 | I40: =HLOOKUP($C40,'Composite Data'!$B$2:$AQ$9,MATCH('Post-operative wound care'!I$4,'Composite Data'!$A$2:$A$10,0),FALSE) -> 2 | J40: 0.02150537634 | K40: =HLOOKUP($C40,'Composite Data'!$B$2:$AQ$9,MATCH('Post-operative wound care'!K$4,'Composite Data'!$A$2:$A$10,0),FALSE) -> 6 | L40: 0.06451612903 | M40: =HLOOKUP($C40,'Composite Data'!$B$2:$AQ$9,MATCH('Post-operative wound care'!L$4,'Composite Data'!$A$2:$A$10,0),FALSE) -> 13 | N40: 0.1397849462 | O40: =HLOOKUP($C40,'Composite Data'!$B$2:$AQ$9,MATCH('Post-operative wound care'!P$4,'Composite Data'!$A$2:$A$10,0),FALSE) -> 16 | P40: 0.1720430108
A41: RB-4 | B41: Shrubberies Medical Centre | C41: F86641 | D41: =HLOOKUP($C41,'Composite Data'!$B$2:$AQ$9,MATCH('Post-operative wound care'!D$4,'Composite Data'!$A$2:$A$10,0),FALSE) -> 7920 | E41: =HLOOKUP($C41,'Composite Data'!$B$2:$AQ$9,MATCH('Post-operative wound care'!E$4,'Composite Data'!$A$2:$A$10,0),FALSE) -> 20 | F41: 0.002525252525 | G41: =HLOOKUP($C41,'Composite Data'!$B$2:$AQ$9,MATCH('Post-operative wound care'!G$4,'Composite Data'!$A$2:$A$10,0),FALSE) -> 30 | H41: 0.003787878788 | I41: =HLOOKUP($C41,'Composite Data'!$B$2:$AQ$9,MATCH('Post-operative wound care'!I$4,'Composite Data'!$A$2:$A$10,0),FALSE) -> 0 | J41: 0 | K41: =HLOOKUP($C41,'Composite Data'!$B$2:$AQ$9,MATCH('Post-operative wound care'!K$4,'Composite Data'!$A$2:$A$10,0),FALSE) -> 0 | L41: 0 | M41: =HLOOKUP($C41,'Composite Data'!$B$2:$AQ$9,MATCH('Post-operative wound care'!L$4,'Composite Data'!$A$2:$A$10,0),FALSE) -> 1 | N41: 0.05 | O41: =HLOOKUP($C41,'Composite Data'!$B$2:$AQ$9,MATCH('Post-operative wound care'!P$4,'Composite Data'!$A$2:$A$10,0),FALSE) -> 7 | P41: 0.35
A42: RB-4 | B42: Glebelands Practice | C42: F86020 | D42: =HLOOKUP($C42,'Composite Data'!$B$2:$AQ$9,MATCH('Post-operative wound care'!D$4,'Composite Data'!$A$2:$A$10,0),FALSE) -> 5826 | E42: =HLOOKUP($C42,'Composite Data'!$B$2:$AQ$9,MATCH('Post-operative wound care'!E$4,'Composite Data'!$A$2:$A$10,0),FALSE) -> 20 | F42: 0.003432887058 | G42: =HLOOKUP($C42,'Composite Data'!$B$2:$AQ$9,MATCH('Post-operative wound care'!G$4,'Composite Data'!$A$2:$A$10,0),FALSE) -> 24 | H42: 0.00411946447 | I42: =HLOOKUP($C42,'Composite Data'!$B$2:$AQ$9,MATCH('Post-operative wound care'!I$4,'Composite Data'!$A$2:$A$10,0),FALSE) -> 0 | J42: 0 | K42: =HLOOKUP($C42,'Composite Data'!$B$2:$AQ$9,MATCH('Post-operative wound care'!K$4,'Composite Data'!$A$2:$A$10,0),FALSE) -> 1 | L42: 0.05 | M42: =HLOOKUP($C42,'Composite Data'!$B$2:$AQ$9,MATCH('Post-operative wound care'!L$4,'Composite Data'!$A$2:$A$10,0),FALSE) -> 3 | N42: 0.15 | O42: =HLOOKUP($C42,'Composite Data'!$B$2:$AQ$9,MATCH('Post-operative wound care'!P$4,'Composite Data'!$A$2:$A$10,0),FALSE) -> 17 | P42: 0.85
A43: RB-4 | B43: Elmhurst Practice | C43: F86064 | D43: =HLOOKUP($C43,'Composite Data'!$B$2:$AQ$9,MATCH('Post-operative wound care'!D$4,'Composite Data'!$A$2:$A$10,0),FALSE) -> 4778 | E43: =HLOOKUP($C43,'Composite Data'!$B$2:$AQ$9,MATCH('Post-operative wound care'!E$4,'Composite Data'!$A$2:$A$10,0),FALSE) -> 27 | F43: 0.005650899958 | G43: =HLOOKUP($C43,'Composite Data'!$B$2:$AQ$9,MATCH('Post-operative wound care'!G$4,'Composite Data'!$A$2:$A$10,0),FALSE) -> 31 | H43: 0.006488070322 | I43: =HLOOKUP($C43,'Composite Data'!$B$2:$AQ$9,MATCH('Post-operative wound care'!I$4,'Composite Data'!$A$2:$A$10,0),FALSE) -> 0 | J43: 0 | K43: =HLOOKUP($C43,'Composite Data'!$B$2:$AQ$9,MATCH('Post-operative wound care'!K$4,'Composite Data'!$A$2:$A$10,0),FALSE) -> 0 | L43: 0 | M43: =HLOOKUP($C43,'Composite Data'!$B$2:$AQ$9,MATCH('Post-operative wound care'!L$4,'Composite Data'!$A$2:$A$10,0),FALSE) -> 0 | N43: 0 | O43: =HLOOKUP($C43,'Composite Data'!$B$2:$AQ$9,MATCH('Post-operative wound care'!P$4,'Composite Data'!$A$2:$A$10,0),FALSE) -> 2 | P43: 0.07407407407
A44: RB-4 | B44: Clayhall Clinic | C44: F86691 | D44: =HLOOKUP($C44,'Composite Data'!$B$2:$AQ$9,MATCH('Post-operative wound care'!D$4,'Composite Data'!$A$2:$A$10,0),FALSE) -> 10967 | E44: =HLOOKUP($C44,'Composite Data'!$B$2:$AQ$9,MATCH('Post-operative wound care'!E$4,'Composite Data'!$A$2:$A$10,0),FALSE) -> 42 | F44: 0.003829670831 | G44: =HLOOKUP($C44,'Composite Data'!$B$2:$AQ$9,MATCH('Post-operative wound care'!G$4,'Composite Data'!$A$2:$A$10,0),FALSE) -> 91 | H44: 0.008297620133 | I44: =HLOOKUP($C44,'Composite Data'!$B$2:$AQ$9,MATCH('Post-operative wound care'!I$4,'Composite Data'!$A$2:$A$10,0),FALSE) -> 0 | J44: 0 | K44: =HLOOKUP($C44,'Composite Data'!$B$2:$AQ$9,MATCH('Post-operative wound care'!K$4,'Composite Data'!$A$2:$A$10,0),FALSE) -> 0 | L44: 0 | M44: =HLOOKUP($C44,'Composite Data'!$B$2:$AQ$9,MATCH('Post-operative wound care'!L$4,'Composite Data'!$A$2:$A$10,0),FALSE) -> 5 | N44: 0.119047619 | O44: =HLOOKUP($C44,'Composite Data'!$B$2:$AQ$9,MATCH('Post-operative wound care'!P$4,'Composite Data'!$A$2:$A$10,0),FALSE) -> 0 | P44: 0
A45: RB-4 | B45: Rydal Practice | C45: F86012 | D45: =HLOOKUP($C45,'Composite Data'!$B$2:$AQ$9,MATCH('Post-operative wound care'!D$4,'Composite Data'!$A$2:$A$10,0),FALSE) -> 9522 | E45: =HLOOKUP($C45,'Composite Data'!$B$2:$AQ$9,MATCH('Post-operative wound care'!E$4,'Composite Data'!$A$2:$A$10,0),FALSE) -> 33 | F45: 0.003465658475 | G45: =HLOOKUP($C45,'Composite Data'!$B$2:$AQ$9,MATCH('Post-operative wound care'!G$4,'Composite Data'!$A$2:$A$10,0),FALSE) -> 37 | H45: 0.00388573829 | I45: =HLOOKUP($C45,'Composite Data'!$B$2:$AQ$9,MATCH('Post-operative wound care'!I$4,'Composite Data'!$A$2:$A$10,0),FALSE) -> 1 | J45: 0.0303030303 | K45: =HLOOKUP($C45,'Composite Data'!$B$2:$AQ$9,MATCH('Post-operative wound care'!K$4,'Composite Data'!$A$2:$A$10,0),FALSE) -> 0 | L45: 0 | M45: =HLOOKUP($C45,'Composite Data'!$B$2:$AQ$9,MATCH('Post-operative wound care'!L$4,'Composite Data'!$A$2:$A$10,0),FALSE) -> 2 | N45: 0.06060606061 | O45: =HLOOKUP($C45,'Composite Data'!$B$2:$AQ$9,MATCH('Post-operative wound care'!P$4,'Composite Data'!$A$2:$A$10,0),FALSE) -> 0 | P45: 0
A46: RB-4 | B46: Queen Mary Practice | C46: F86658 | D46: =HLOOKUP($C46,'Composite Data'!$B$2:$AQ$9,MATCH('Post-operative wound care'!D$4,'Composite Data'!$A$2:$A$10,0),FALSE) -> 5508 | E46: =HLOOKUP($C46,'Composite Data'!$B$2:$AQ$9,MATCH('Post-operative wound care'!E$4,'Composite Data'!$A$2:$A$10,0),FALSE) -> 5 | F46: 0.0009077705156 | G46: =HLOOKUP($C46,'Composite Data'!$B$2:$AQ$9,MATCH('Post-operative wound care'!G$4,'Composite Data'!$A$2:$A$10,0),FALSE) -> 6 | H46: 0.001089324619 | I46: =HLOOKUP($C46,'Composite Data'!$B$2:$AQ$9,MATCH('Post-operative wound care'!I$4,'Composite Data'!$A$2:$A$10,0),FALSE) -> 0 | J46: 0 | K46: =HLOOKUP($C46,'Composite Data'!$B$2:$AQ$9,MATCH('Post-operative wound care'!K$4,'Composite Data'!$A$2:$A$10,0),FALSE) -> 1 | L46: 0.2 | M46: =HLOOKUP($C46,'Composite Data'!$B$2:$AQ$9,MATCH('Post-operative wound care'!L$4,'Composite Data'!$A$2:$A$10,0),FALSE) -> 1 | N46: 0.2 | O46: =HLOOKUP($C46,'Composite Data'!$B$2:$AQ$9,MATCH('Post-operative wound care'!P$4,'Composite Data'!$A$2:$A$10,0),FALSE) -> 1 | P46: 0.2
A47: RB-5 | B47: Ilford Medical Centre | C47: F86022 | D47: =HLOOKUP($C47,'Composite Data'!$B$2:$AQ$9,MATCH('Post-operative wound care'!D$4,'Composite Data'!$A$2:$A$10,0),FALSE) -> 14533 | E47: =HLOOKUP($C47,'Composite Data'!$B$2:$AQ$9,MATCH('Post-operative wound care'!E$4,'Composite Data'!$A$2:$A$10,0),FALSE) -> 6 | F47: 0.0004128535058 | G47: =HLOOKUP($C47,'Composite Data'!$B$2:$AQ$9,MATCH('Post-operative wound care'!G$4,'Composite Data'!$A$2:$A$10,0),FALSE) -> 10 | H47: 0.0006880891764 | I47: =HLOOKUP($C47,'Composite Data'!$B$2:$AQ$9,MATCH('Post-operative wound care'!I$4,'Composite Data'!$A$2:$A$10,0),FALSE) -> 0 | J47: 0 | K47: =HLOOKUP($C47,'Composite Data'!$B$2:$AQ$9,MATCH('Post-operative wound care'!K$4,'Composite Data'!$A$2:$A$10,0),FALSE) -> 0 | L47: 0 | M47: =HLOOKUP($C47,'Composite Data'!$B$2:$AQ$9,MATCH('Post-operative wound care'!L$4,'Composite Data'!$A$2:$A$10,0),FALSE) -> 0 | N47: 0 | O47: =HLOOKUP($C47,'Composite Data'!$B$2:$AQ$9,MATCH('Post-operative wound care'!P$4,'Composite Data'!$A$2:$A$10,0),FALSE) -> 2 | P47: 0.3333333333
A48: RB-5 | B48: The Practice Loxford | C48: Y02987 | D48: =HLOOKUP($C48,'Composite Data'!$B$2:$AQ$9,MATCH('Post-operative wound care'!D$4,'Composite Data'!$A$2:$A$10,0),FALSE) -> 29551 | E48: =HLOOKUP($C48,'Composite Data'!$B$2:$AQ$9,MATCH('Post-operative wound care'!E$4,'Composite Data'!$A$2:$A$10,0),FALSE) -> 120 | F48: 0.004060776285 | G48: =HLOOKUP($C48,'Composite Data'!$B$2:$AQ$9,MATCH('Post-operative wound care'!G$4,'Composite Data'!$A$2:$A$10,0),FALSE) -> 0 | H48: 0 | I48: =HLOOKUP($C48,'Composite Data'!$B$2:$AQ$9,MATCH('Post-operative wound care'!I$4,'Composite Data'!$A$2:$A$10,0),FALSE) -> 4 | J48: 0.03333333333 | K48: =HLOOKUP($C48,'Composite Data'!$B$2:$AQ$9,MATCH('Post-operative wound care'!K$4,'Composite Data'!$A$2:$A$10,0),FALSE) -> 6 | L48: 0.05 | M48: =HLOOKUP($C48,'Composite Data'!$B$2:$AQ$9,MATCH('Post-operative wound care'!L$4,'Composite Data'!$A$2:$A$10,0),FALSE) -> 10 | N48: 0.08333333333 | O48: =HLOOKUP($C48,'Composite Data'!$B$2:$AQ$9,MATCH('Post-operative wound care'!P$4,'Composite Data'!$A$2:$A$10,0),FALSE) -> 75 | P48: 0.625
A49: RB-5 | B49: Mathukias Surgery | C49: F86692 | D49: =HLOOKUP($C49,'Composite Data'!$B$2:$AQ$9,MATCH('Post-operative wound care'!D$4,'Composite Data'!$A$2:$A$10,0),FALSE) -> 10879 | E49: =HLOOKUP($C49,'Composite Data'!$B$2:$AQ$9,MATCH('Post-operative wound care'!E$4,'Composite Data'!$A$2:$A$10,0),FALSE) -> 6 | F49: 0.0005515212795 | G49: =HLOOKUP($C49,'Composite Data'!$B$2:$AQ$9,MATCH('Post-operative wound care'!G$4,'Composite Data'!$A$2:$A$10,0),FALSE) -> 9 | H49: 0.0008272819193 | I49: =HLOOKUP($C49,'Composite Data'!$B$2:$AQ$9,MATCH('Post-operative wound care'!I$4,'Composite Data'!$A$2:$A$10,0),FALSE) -> 0 | J49: 0 | K49: =HLOOKUP($C49,'Composite Data'!$B$2:$AQ$9,MATCH('Post-operative wound care'!K$4,'Composite Data'!$A$2:$A$10,0),FALSE) -> 0 | L49: 0 | M49: =HLOOKUP($C49,'Composite Data'!$B$2:$AQ$9,MATCH('Post-operative wound care'!L$4,'Composite Data'!$A$2:$A$10,0),FALSE) -> 1 | N49: 0.1666666667 | O49: =HLOOKUP($C49,'Composite Data'!$B$2:$AQ$9,MATCH('Post-operative wound care'!P$4,'Composite Data'!$A$2:$A$10,0),FALSE) -> 0 | P49: 0
A50: RB-5 | B50: Ilford Lane Surgery | C50: F86082 | D50: =HLOOKUP($C50,'Composite Data'!$B$2:$AQ$9,MATCH('Post-operative wound care'!D$4,'Composite Data'!$A$2:$A$10,0),FALSE) -> 6052 | E50: =HLOOKUP($C50,'Composite Data'!$B$2:$AQ$9,MATCH('Post-operative wound care'!E$4,'Composite Data'!$A$2:$A$10,0),FALSE) -> 21 | F50: 0.003469927297 | G50: 0 | H50: 0 | I50: 0 | J50: 0 | K50: =HLOOKUP($C50,'Composite Data'!$B$2:$AQ$9,MATCH('Post-operative wound care'!K$4,'Composite Data'!$A$2:$A$10,0),FALSE) -> 0 | L50: 0 | M50: =HLOOKUP($C50,'Composite Data'!$B$2:$AQ$9,MATCH('Post-operative wound care'!L$4,'Composite Data'!$A$2:$A$10,0),FALSE) -> 0 | N50: 0 | O50: =HLOOKUP($C50,'Composite Data'!$B$2:$AQ$9,MATCH('Post-operative wound care'!P$4,'Composite Data'!$A$2:$A$10,0),FALSE) -> 21 | P50: 1
A51: RB-5 | B51: Oak Tree Medical Practice | C51: F86025 | D51: =HLOOKUP($C51,'Composite Data'!$B$2:$AQ$9,MATCH('Post-operative wound care'!D$4,'Composite Data'!$A$2:$A$10,0),FALSE) -> 17510 | E51: =HLOOKUP($C51,'Composite Data'!$B$2:$AQ$9,MATCH('Post-operative wound care'!E$4,'Composite Data'!$A$2:$A$10,0),FALSE) -> 90 | F51: 0.005139920046 | G51: 0 | H51: 0 | I51: 0 | J51: 0 | K51: =HLOOKUP($C51,'Composite Data'!$B$2:$AQ$9,MATCH('Post-operative wound care'!K$4,'Composite Data'!$A$2:$A$10,0),FALSE) -> 4 | L51: 0.04444444444 | M51: =HLOOKUP($C51,'Composite Data'!$B$2:$AQ$9,MATCH('Post-operative wound care'!L$4,'Composite Data'!$A$2:$A$10,0),FALSE) -> 4 | N51: 0.04444444444 | O51: =HLOOKUP($C51,'Composite Data'!$B$2:$AQ$9,MATCH('Post-operative wound care'!P$4,'Composite Data'!$A$2:$A$10,0),FALSE) -> 89 | P51: 0.9888888889
A52: RB-6 | B52: Hainault Surgery | C52: F86085 | D52: =HLOOKUP($C52,'Composite Data'!$B$2:$AQ$9,MATCH('Post-operative wound care'!D$4,'Composite Data'!$A$2:$A$10,0),FALSE) -> 3500 | E52: =HLOOKUP($C52,'Composite Data'!$B$2:$AQ$9,MATCH('Post-operative wound care'!E$4,'Composite Data'!$A$2:$A$10,0),FALSE) -> 7 | F52: 0.002 | G52: =HLOOKUP($C52,'Composite Data'!$B$2:$AQ$9,MATCH('Post-operative wound care'!G$4,'Composite Data'!$A$2:$A$10,0),FALSE) -> 12 | H52: 0.003428571429 | I52: =HLOOKUP($C52,'Composite Data'!$B$2:$AQ$9,MATCH('Post-operative wound care'!I$4,'Composite Data'!$A$2:$A$10,0),FALSE) -> 0 | J52: 0 | K52: =HLOOKUP($C52,'Composite Data'!$B$2:$AQ$9,MATCH('Post-operative wound care'!K$4,'Composite Data'!$A$2:$A$10,0),FALSE) -> 0 | L52: 0 | M52: =HLOOKUP($C52,'Composite Data'!$B$2:$AQ$9,MATCH('Post-operative wound care'!L$4,'Composite Data'!$A$2:$A$10,0),FALSE) -> 2 | N52: 0.2857142857 | O52: =HLOOKUP($C52,'Composite Data'!$B$2:$AQ$9,MATCH('Post-operative wound care'!P$4,'Composite Data'!$A$2:$A$10,0),FALSE) -> 0 | P52: 0
A53: RB-6 | B53: Fullwell Cross Medical Centre | C53: F86010 | D53: =HLOOKUP($C53,'Composite Data'!$B$2:$AQ$9,MATCH('Post-operative wound care'!D$4,'Composite Data'!$A$2:$A$10,0),FALSE) -> 15563 | E53: =HLOOKUP($C53,'Composite Data'!$B$2:$AQ$9,MATCH('Post-operative wound care'!E$4,'Composite Data'!$A$2:$A$10,0),FALSE) -> 50 | F53: 0.003212748185 | G53: =HLOOKUP($C53,'Composite Data'!$B$2:$AQ$9,MATCH('Post-operative wound care'!G$4,'Composite Data'!$A$2:$A$10,0),FALSE) -> 52 | H53: 0.003341258112 | I53: =HLOOKUP($C53,'Composite Data'!$B$2:$AQ$9,MATCH('Post-operative wound care'!I$4,'Composite Data'!$A$2:$A$10,0),FALSE) -> 0 | J53: 0 | K53: =HLOOKUP($C53,'Composite Data'!$B$2:$AQ$9,MATCH('Post-operative wound care'!K$4,'Composite Data'!$A$2:$A$10,0),FALSE) -> 0 | L53: 0 | M53: =HLOOKUP($C53,'Composite Data'!$B$2:$AQ$9,MATCH('Post-operative wound care'!L$4,'Composite Data'!$A$2:$A$10,0),FALSE) -> 1 | N53: 0.02 | O53: =HLOOKUP($C53,'Composite Data'!$B$2:$AQ$9,MATCH('Post-operative wound care'!P$4,'Composite Data'!$A$2:$A$10,0),FALSE) -> 1 | P53: 0.02
A54: RB-6 | B54: Newbury Group Practice | C54: F86060 | D54: =HLOOKUP($C54,'Composite Data'!$B$2:$AQ$9,MATCH('Post-operative wound care'!D$4,'Composite Data'!$A$2:$A$10,0),FALSE) -> 15710 | E54: =HLOOKUP($C54,'Composite Data'!$B$2:$AQ$9,MATCH('Post-operative wound care'!E$4,'Composite Data'!$A$2:$A$10,0),FALSE) -> 9 | F54: 0.0005728835137 | G54: =HLOOKUP($C54,'Composite Data'!$B$2:$AQ$9,MATCH('Post-operative wound care'!G$4,'Composite Data'!$A$2:$A$10,0),FALSE) -> 10 | H54: 0.0006365372374 | I54: =HLOOKUP($C54,'Composite Data'!$B$2:$AQ$9,MATCH('Post-operative wound care'!I$4,'Composite Data'!$A$2:$A$10,0),FALSE) -> 0 | J54: 0 | K54: =HLOOKUP($C54,'Composite Data'!$B$2:$AQ$9,MATCH('Post-operative wound care'!K$4,'Composite Data'!$A$2:$A$10,0),FALSE) -> 0 | L54: 0 | M54: =HLOOKUP($C54,'Composite Data'!$B$2:$AQ$9,MATCH('Post-operative wound care'!L$4,'Composite Data'!$A$2:$A$10,0),FALSE) -> 1 | N54: 0.1111111111 | O54: =HLOOKUP($C54,'Composite Data'!$B$2:$AQ$9,MATCH('Post-operative wound care'!P$4,'Composite Data'!$A$2:$A$10,0),FALSE) -> 1 | P54: 0.1111111111

Sheet Composite Data
B1: =MATCH(B2,'Control Panel'!$A$12:$A$53,0) -> 39 | C1: =MATCH(C2,'Control Panel'!$A$12:$A$53,0) -> 38 | D1: =MATCH(D2,'Control Panel'!$A$12:$A$53,0) -> 8 | E1: =MATCH(E2,'Control Panel'!$A$12:$A$53,0) -> 15 | F1: =MATCH(F2,'Control Panel'!$A$12:$A$53,0) -> 14 | G1: =MATCH(G2,'Control Panel'!$A$12:$A$53,0) -> 23 | H1: =MATCH(H2,'Control Panel'!$A$12:$A$53,0) -> 24 | I1: =MATCH(I2,'Control Panel'!$A$12:$A$53,0) -> 34 | J1: =MATCH(J2,'Control Panel'!$A$12:$A$53,0) -> 36 | K1: =MATCH(K2,'Control Panel'!$A$12:$A$53,0) -> 3 | L1: =MATCH(L2,'Control Panel'!$A$12:$A$53,0) -> 19 | M1: =MATCH(M2,'Control Panel'!$A$12:$A$53,0) -> 27 | N1: =MATCH(N2,'Control Panel'!$A$12:$A$53,0) -> 13 | O1: =MATCH(O2,'Control Panel'!$A$12:$A$53,0) -> 7 | P1: =MATCH(P2,'Control Panel'!$A$12:$A$53,0) -> 2 | Q1: =MATCH(Q2,'Control Panel'!$A$12:$A$53,0) -> 5 | R1: =MATCH(R2,'Control Panel'!$A$12:$A$53,0) -> 37 | S1: =MATCH(S2,'Control Panel'!$A$12:$A$53,0) -> 32 | T1: =MATCH(T2,'Control Panel'!$A$12:$A$53,0) -> 1 | U1: =MATCH(U2,'Control Panel'!$A$12:$A$53,0) -> 21 | V1: =MATCH(V2,'Control Panel'!$A$12:$A$53,0) -> 29 | W1: =MATCH(W2,'Control Panel'!$A$12:$A$53,0) -> 18 | X1: =MATCH(X2,'Control Panel'!$A$12:$A$53,0) -> 12 | Y1: =MATCH(Y2,'Control Panel'!$A$12:$A$53,0) -> 11 | Z1: =MATCH(Z2,'Control Panel'!$A$12:$A$53,0) -> 17 | AA1: =MATCH(AA2,'Control Panel'!$A$12:$A$53,0) -> 40 | AB1: =MATCH(AB2,'Control Panel'!$A$12:$A$53,0) -> 10 | AC1: =MATCH(AC2,'Control Panel'!$A$12:$A$53,0) -> 9 | AD1: =MATCH(AD2,'Control Panel'!$A$12:$A$53,0) -> 28 | AE1: =MATCH(AE2,'Control Panel'!$A$12:$A$53,0) -> 31 | AF1: =MATCH(AF2,'Control Panel'!$A$12:$A$53,0) -> 42 | AG1: =MATCH(AG2,'Control Panel'!$A$12:$A$53,0) -> 4 | AH1: =MATCH(AH2,'Control Panel'!$A$12:$A$53,0) -> 20 | AI1: =MATCH(AI2,'Control Panel'!$A$12:$A$53,0) -> 26 | AJ1: =MATCH(AJ2,'Control Panel'!$A$12:$A$53,0) -> 22 | AK1: =MATCH(AK2,'Control Panel'!$A$12:$A$53,0) -> 25 | AL1: =MATCH(AL2,'Control Panel'!$A$12:$A$53,0) -> 35 | AM1: =MATCH(AM2,'Control Panel'!$A$12:$A$53,0) -> 30 | AN1: =MATCH(AN2,'Control Panel'!$A$12:$A$53,0) -> 33 | AO1: =MATCH(AO2,'Control Panel'!$A$12:$A$53,0) -> 41 | AP1: =MATCH(AP2,'Control Panel'!$A$12:$A$53,0) -> 16 | AQ1: =MATCH(AQ2,'Control Panel'!$A$12:$A$53,0) -> 6
B2: F86025 | C2: F86082 | D2: F86657 | E2: F86007 | F2: F86057 | G2: Y00155 | H2: F86013 | I2: F86658 | J2: Y02987 | K2: Y00918 | L2: Y00090 | M2: F86731 | N2: F86707 | O2: F86703 | P2: F86702 | Q2: F86698 | R2: F86692 | S2: F86691 | T2: F86652 | U2: F86642 | V2: F86641 | W2: F86637 | X2: F86624 | Y2: F86612 | Z2: F86087 | AA2: F86085 | AB2: F86083 | AC2: F86081 | AD2: F86066 | AE2: F86064 | AF2: F86060 | AG2: F86042 | AH2: F86034 | AI2: F86032 | AJ2: F86028 | AK2: F86023 | AL2: F86022 | AM2: F86020 | AN2: F86012 | AO2: F86010 | AP2: F86009 | AQ2: F86008
A3: Currently Registered Regular Patients | B3: =VLOOKUP($A3,'Other Data'!A2:F10,MATCH('Composite Data'!B2,'Other Data'!A2:F2,0),FALSE) -> 17510 | C3: =VLOOKUP($A3,'Other Data'!$A$4:$J$10,MATCH('Composite Data'!C$2,'Other Data'!$A$2:$J$2,0),FALSE) -> 6052 | D3: =VLOOKUP($A3,'Other Data'!$A$4:$J$10,MATCH('Composite Data'!D$2,'Other Data'!$A$2:$J$2,0),FALSE) -> 8355 | E3: =VLOOKUP($A3,'EMIS Data'!$A$10:$DG$16,MATCH('Composite Data'!E$2,'EMIS Data'!$A$8:$DG$8,0),FALSE) -> 13665 | F3: =VLOOKUP($A3,'EMIS Data'!$A$10:$DG$16,MATCH('Composite Data'!F$2,'EMIS Data'!$A$8:$DG$8,0),FALSE) -> 6471 | G3: =VLOOKUP($A3,'Other Data'!$A$4:$J$10,MATCH('Composite Data'!G$2,'Other Data'!$A$2:$J$2,0),FALSE) -> 10075 | H3: =VLOOKUP($A3,'Other Data'!$A$4:$J$10,MATCH('Composite Data'!H$2,'Other Data'!$A$2:$J$2,0),FALSE) -> 7149 | I3: =VLOOKUP($A3,'EMIS Data'!$A$10:$DG$16,MATCH('Composite Data'!I$2,'EMIS Data'!$A$8:$DG$8,0),FALSE) -> 5508 | J3: =VLOOKUP($A3,'EMIS Data'!$A$10:$DH$16,MATCH('Composite Data'!J$2,'EMIS Data'!$A$8:$DH$8,0),FALSE) -> 29551 | K3: =VLOOKUP($A3,'EMIS Data'!$A$10:$DG$16,MATCH('Composite Data'!K$2,'EMIS Data'!$A$8:$DG$8,0),FALSE) -> 6592 | L3: =VLOOKUP($A3,'EMIS Data'!$A$10:$DG$16,MATCH('Composite Data'!L$2,'EMIS Data'!$A$8:$DG$8,0),FALSE) -> 8283 | M3: =VLOOKUP($A3,'EMIS Data'!$A$10:$DG$16,MATCH('Composite Data'!M$2,'EMIS Data'!$A$8:$DG$8,0),FALSE) -> 4627 | N3: =VLOOKUP($A3,'EMIS Data'!$A$10:$DG$16,MATCH('Composite Data'!N$2,'EMIS Data'!$A$8:$DG$8,0),FALSE) -> 6752 | O3: =VLOOKUP($A3,'EMIS Data'!$A$10:$DG$16,MATCH('Composite Data'!O$2,'EMIS Data'!$A$8:$DG$8,0),FALSE) -> 3834 | P3: =VLOOKUP($A3,'EMIS Data'!$A$10:$DG$16,MATCH('Composite Data'!P$2,'EMIS Data'!$A$8:$DG$8,0),FALSE) -> 5186 | Q3: =VLOOKUP($A3,'EMIS Data'!$A$10:$DG$16,MATCH('Composite Data'!Q$2,'EMIS Data'!$A$8:$DG$8,0),FALSE) -> 5433 | R3: =VLOOKUP($A3,'EMIS Data'!$A$10:$DG$16,MATCH('Composite Data'!R$2,'EMIS Data'!$A$8:$DG$8,0),FALSE) -> 10879 | S3: =VLOOKUP($A3,'EMIS Data'!$A$10:$DG$16,MATCH('Composite Data'!S$2,'EMIS Data'!$A$8:$DG$8,0),FALSE) -> 10967 | T3: =VLOOKUP($A3,'EMIS Data'!$A$10:$DG$16,MATCH('Composite Data'!T$2,'EMIS Data'!$A$8:$DG$8,0),FALSE) -> 7227 | U3: =VLOOKUP($A3,'EMIS Data'!$A$10:$DG$16,MATCH('Composite Data'!U$2,'EMIS Data'!$A$8:$DG$8,0),FALSE) -> 5086 | V3: =VLOOKUP($A3,'EMIS Data'!$A$10:$DG$16,MATCH('Composite Data'!V$2,'EMIS Data'!$A$8:$DG$8,0),FALSE) -> 7920 | W3: =VLOOKUP($A3,'EMIS Data'!$A$10:$DG$16,MATCH('Composite Data'!W$2,'EMIS Data'!$A$8:$DG$8,0),FALSE) -> 4918 | X3: =VLOOKUP($A3,'EMIS Data'!$A$10:$DG$16,MATCH('Composite Data'!X$2,'EMIS Data'!$A$8:$DG$8,0),FALSE) -> 3122 | Y3: =VLOOKUP($A3,'EMIS Data'!$A$10:$DG$16,MATCH('Composite Data'!Y$2,'EMIS Data'!$A$8:$DG$8,0),FALSE) -> 3307 | Z3: =VLOOKUP($A3,'EMIS Data'!$A$10:$DG$16,MATCH('Composite Data'!Z$2,'EMIS Data'!$A$8:$DG$8,0),FALSE) -> 7626 | AA3: =VLOOKUP($A3,'EMIS Data'!$A$10:$DG$16,MATCH('Composite Data'!AA$2,'EMIS Data'!$A$8:$DG$8,0),FALSE) -> 3500 | AB3: =VLOOKUP($A3,'EMIS Data'!$A$10:$DG$16,MATCH('Composite Data'!AB$2,'EMIS Data'!$A$8:$DG$8,0),FALSE) -> 6785 | AC3: =VLOOKUP($A3,'EMIS Data'!$A$10:$DG$16,MATCH('Composite Data'!AC$2,'EMIS Data'!$A$8:$DG$8,0),FALSE) -> 6454 | AD3: =VLOOKUP($A3,'EMIS Data'!$A$10:$DG$16,MATCH('Composite Data'!AD$2,'EMIS Data'!$A$8:$DG$8,0),FALSE) -> 7890 | AE3: =VLOOKUP($A3,'EMIS Data'!$A$10:$DG$16,MATCH('Composite Data'!AE$2,'EMIS Data'!$A$8:$DG$8,0),FALSE) -> 4778 | AF3: =VLOOKUP($A3,'EMIS Data'!$A$10:$DG$16,MATCH('Composite Data'!AF$2,'EMIS Data'!$A$8:$DG$8,0),FALSE) -> 15710 | AG3: =VLOOKUP($A3,'EMIS Data'!$A$10:$DG$16,MATCH('Composite Data'!AG$2,'EMIS Data'!$A$8:$DG$8,0),FALSE) -> 6270 | AH3: =VLOOKUP($A3,'EMIS Data'!$A$10:$DG$16,MATCH('Composite Data'!AH$2,'EMIS Data'!$A$8:$DG$8,0),FALSE) -> 6154 | AI3: =VLOOKUP($A3,'EMIS Data'!$A$10:$DG$16,MATCH('Composite Data'!AI$2,'EMIS Data'!$A$8:$DG$8,0),FALSE) -> 9305 | AJ3: =VLOOKUP($A3,'EMIS Data'!$A$10:$DG$16,MATCH('Composite Data'!AJ$2,'EMIS Data'!$A$8:$DG$8,0),FALSE) -> 10674 | AK3: =VLOOKUP($A3,'EMIS Data'!$A$10:$DG$16,MATCH('Composite Data'!AK$2,'EMIS Data'!$A$8:$DG$8,0),FALSE) -> 9894 | AL3: =VLOOKUP($A3,'EMIS Data'!$A$10:$DG$16,MATCH('Composite Data'!AL$2,'EMIS Data'!$A$8:$DG$8,0),FALSE) -> 14533 | AM3: =VLOOKUP($A3,'EMIS Data'!$A$10:$DG$16,MATCH('Composite Data'!AM$2,'EMIS Data'!$A$8:$DG$8,0),FALSE) -> 5826 | AN3: =VLOOKUP($A3,'EMIS Data'!$A$10:$DG$16,MATCH('Composite Data'!AN$2,'EMIS Data'!$A$8:$DG$8,0),FALSE) -> 9522 | AO3: =VLOOKUP($A3,'EMIS Data'!$A$10:$DG$16,MATCH('Composite Data'!AO$2,'EMIS Data'!$A$8:$DG$8,0),FALSE) -> 15563 | AP3: =VLOOKUP($A3,'EMIS Data'!$A$10:$DG$16,MATCH('Composite Data'!AP$2,'EMIS Data'!$A$8:$DG$8,0),FALSE) -> 7561 | AQ3: =VLOOKUP($A3,'EMIS Data'!$A$10:$DG$16,MATCH('Composite Data'!AQ$2,'EMIS Data'!$A$8:$DG$8,0),FALSE) -> 11581
A4: POWC 01 Post-operative wound care 2022 | B4: =VLOOKUP($A4,'Other Data'!$A$4:$J$10,MATCH('Composite Data'!B$2,'Other Data'!$A$2:$J$2,0),FALSE) -> 90 | C4: =VLOOKUP($A4,'Other Data'!$A$4:$J$10,MATCH('Composite Data'!C$2,'Other Data'!$A$2:$J$2,0),FALSE) -> 21 | D4: =VLOOKUP($A4,'Other Data'!$A$4:$J$10,MATCH('Composite Data'!D$2,'Other Data'!$A$2:$J$2,0),FALSE) -> 27 | E4: =VLOOKUP($A4,'EMIS Data'!$A$10:$DG$16,MATCH('Composite Data'!E$2,'EMIS Data'!$A$8:$DG$8,0),FALSE) -> 165 | F4: =VLOOKUP($A4,'EMIS Data'!$A$10:$DG$16,MATCH('Composite Data'!F$2,'EMIS Data'!$A$8:$DG$8,0),FALSE) -> 15 | G4: =VLOOKUP($A4,'Other Data'!$A$4:$J$10,MATCH('Composite Data'!G$2,'Other Data'!$A$2:$J$2,0),FALSE) -> 1 | H4: =VLOOKUP($A4,'Other Data'!$A$4:$J$10,MATCH('Composite Data'!H$2,'Other Data'!$A$2:$J$2,0),FALSE) -> 27 | I4: =VLOOKUP($A4,'EMIS Data'!$A$10:$DG$16,MATCH('Composite Data'!I$2,'EMIS Data'!$A$8:$DG$8,0),FALSE) -> 5 | J4: =VLOOKUP($A4,'EMIS Data'!$A$10:$DH$16,MATCH('Composite Data'!J$2,'EMIS Data'!$A$8:$DH$8,0),FALSE) -> 120 | K4: =VLOOKUP($A4,'EMIS Data'!$A$10:$DG$16,MATCH('Composite Data'!K$2,'EMIS Data'!$A$8:$DG$8,0),FALSE) -> 30 | L4: =VLOOKUP($A4,'EMIS Data'!$A$10:$DG$16,MATCH('Composite Data'!L$2,'EMIS Data'!$A$8:$DG$8,0),FALSE) -> 4 | M4: =VLOOKUP($A4,'EMIS Data'!$A$10:$DG$16,MATCH('Composite Data'!M$2,'EMIS Data'!$A$8:$DG$8,0),FALSE) -> 18 | N4: =VLOOKUP($A4,'EMIS Data'!$A$10:$DG$16,MATCH('Composite Data'!N$2,'EMIS Data'!$A$8:$DG$8,0),FALSE) -> 14 | O4: =VLOOKUP($A4,'EMIS Data'!$A$10:$DG$16,MATCH('Composite Data'!O$2,'EMIS Data'!$A$8:$DG$8,0),FALSE) -> 24 | P4: =VLOOKUP($A4,'EMIS Data'!$A$10:$DG$16,MATCH('Composite Data'!P$2,'EMIS Data'!$A$8:$DG$8,0),FALSE) -> 1 | Q4: =VLOOKUP($A4,'EMIS Data'!$A$10:$DG$16,MATCH('Composite Data'!Q$2,'EMIS Data'!$A$8:$DG$8,0),FALSE) -> 11 | R4: =VLOOKUP($A4,'EMIS Data'!$A$10:$DG$16,MATCH('Composite Data'!R$2,'EMIS Data'!$A$8:$DG$8,0),FALSE) -> 6 | S4: =VLOOKUP($A4,'EMIS Data'!$A$10:$DG$16,MATCH('Composite Data'!S$2,'EMIS Data'!$A$8:$DG$8,0),FALSE) -> 42 | T4: =VLOOKUP($A4,'EMIS Data'!$A$10:$DG$16,MATCH('Composite Data'!T$2,'EMIS Data'!$A$8:$DG$8,0),FALSE) -> 12 | U4: =VLOOKUP($A4,'EMIS Data'!$A$10:$DG$16,MATCH('Composite Data'!U$2,'EMIS Data'!$A$8:$DG$8,0),FALSE) -> 4 | V4: =VLOOKUP($A4,'EMIS Data'!$A$10:$DG$16,MATCH('Composite Data'!V$2,'EMIS Data'!$A$8:$DG$8,0),FALSE) -> 20 | W4: =VLOOKUP($A4,'EMIS Data'!$A$10:$DG$16,MATCH('Composite Data'!W$2,'EMIS Data'!$A$8:$DG$8,0),FALSE) -> 11 | X4: =VLOOKUP($A4,'EMIS Data'!$A$10:$DG$16,MATCH('Composite Data'!X$2,'EMIS Data'!$A$8:$DG$8,0),FALSE) -> 2 | Y4: =VLOOKUP($A4,'EMIS Data'!$A$10:$DG$16,MATCH('Composite Data'!Y$2,'EMIS Data'!$A$8:$DG$8,0),FALSE) -> 10 | Z4: =VLOOKUP($A4,'EMIS Data'!$A$10:$DG$16,MATCH('Composite Data'!Z$2,'EMIS Data'!$A$8:$DG$8,0),FALSE) -> 12 | AA4: =VLOOKUP($A4,'EMIS Data'!$A$10:$DG$16,MATCH('Composite Data'!AA$2,'EMIS Data'!$A$8:$DG$8,0),FALSE) -> 7 | AB4: =VLOOKUP($A4,'EMIS Data'!$A$10:$DG$16,MATCH('Composite Data'!AB$2,'EMIS Data'!$A$8:$DG$8,0),FALSE) -> 27 | AC4: =VLOOKUP($A4,'EMIS Data'!$A$10:$DG$16,MATCH('Composite Data'!AC$2,'EMIS Data'!$A$8:$DG$8,0),FALSE) -> 11 | AD4: =VLOOKUP($A4,'EMIS Data'!$A$10:$DG$16,MATCH('Composite Data'!AD$2,'EMIS Data'!$A$8:$DG$8,0),FALSE) -> 93 | AE4: =VLOOKUP($A4,'EMIS Data'!$A$10:$DG$16,MATCH('Composite Data'!AE$2,'EMIS Data'!$A$8:$DG$8,0),FALSE) -> 27 | AF4: =VLOOKUP($A4,'EMIS Data'!$A$10:$DG$16,MATCH('Composite Data'!AF$2,'EMIS Data'!$A$8:$DG$8,0),FALSE) -> 9 | AG4: =VLOOKUP($A4,'EMIS Data'!$A$10:$DG$16,MATCH('Composite Data'!AG$2,'EMIS Data'!$A$8:$DG$8,0),FALSE) -> 33 | AH4: =VLOOKUP($A4,'EMIS Data'!$A$10:$DG$16,MATCH('Composite Data'!AH$2,'EMIS Data'!$A$8:$DG$8,0),FALSE) -> 0 | AI4: =VLOOKUP($A4,'EMIS Data'!$A$10:$DG$16,MATCH('Composite Data'!AI$2,'EMIS Data'!$A$8:$DG$8,0),FALSE) -> 54 | AJ4: =VLOOKUP($A4,'EMIS Data'!$A$10:$DG$16,MATCH('Composite Data'!AJ$2,'EMIS Data'!$A$8:$DG$8,0),FALSE) -> 71 | AK4: =VLOOKUP($A4,'EMIS Data'!$A$10:$DG$16,MATCH('Composite Data'!AK$2,'EMIS Data'!$A$8:$DG$8,0),FALSE) -> 86 | AL4: =VLOOKUP($A4,'EMIS Data'!$A$10:$DG$16,MATCH('Composite Data'!AL$2,'EMIS Data'!$A$8:$DG$8,0),FALSE) -> 6 | AM4: =VLOOKUP($A4,'EMIS Data'!$A$10:$DG$16,MATCH('Composite Data'!AM$2,'EMIS Data'!$A$8:$DG$8,0),FALSE) -> 20 | AN4: =VLOOKUP($A4,'EMIS Data'!$A$10:$DG$16,MATCH('Composite Data'!AN$2,'EMIS Data'!$A$8:$DG$8,0),FALSE) -> 33 | AO4: =VLOOKUP($A4,'EMIS Data'!$A$10:$DG$16,MATCH('Composite Data'!AO$2,'EMIS Data'!$A$8:$DG$8,0),FALSE) -> 50 | AP4: =VLOOKUP($A4,'EMIS Data'!$A$10:$DG$16,MATCH('Composite Data'!AP$2,'EMIS Data'!$A$8:$DG$8,0),FALSE) -> 39 | AQ4: =VLOOKUP($A4,'EMIS Data'!$A$10:$DG$16,MATCH('Composite Data'!AQ$2,'EMIS Data'!$A$8:$DG$8,0),FALSE) -> 37
A5: POWC 01 Post-operative wound care Activity | B5: =VLOOKUP($A5,'Other Data'!$A$4:$J$10,MATCH('Composite Data'!B$2,'Other Data'!$A$2:$J$2,0),FALSE) ->  | C5: =VLOOKUP($A5,'Other Data'!$A$4:$J$10,MATCH('Composite Data'!C$2,'Other Data'!$A$2:$J$2,0),FALSE) ->  | D5: =VLOOKUP($A5,'Other Data'!$A$4:$J$10,MATCH('Composite Data'!D$2,'Other Data'!$A$2:$J$2,0),FALSE) ->  | E5: =VLOOKUP($A5,'EMIS Data'!$A$10:$DG$16,MATCH('Composite Data'!E$2,'EMIS Data'!$A$8:$DG$8,0),FALSE) -> 419 | F5: =VLOOKUP($A5,'EMIS Data'!$A$10:$DG$16,MATCH('Composite Data'!F$2,'EMIS Data'!$A$8:$DG$8,0),FALSE) -> 23 | G5: =VLOOKUP($A5,'Other Data'!$A$4:$J$10,MATCH('Composite Data'!G$2,'Other Data'!$A$2:$J$2,0),FALSE) ->  | H5: =VLOOKUP($A5,'Other Data'!$A$4:$J$10,MATCH('Composite Data'!H$2,'Other Data'!$A$2:$J$2,0),FALSE) ->  | I5: =VLOOKUP($A5,'EMIS Data'!$A$10:$DG$16,MATCH('Composite Data'!I$2,'EMIS Data'!$A$8:$DG$8,0),FALSE) -> 6 | J5: =VLOOKUP($A5,'EMIS Data'!$A$10:$DH$16,MATCH('Composite Data'!J$2,'EMIS Data'!$A$8:$DH$8,0),FALSE) -> 0 | K5: =VLOOKUP($A5,'EMIS Data'!$A$10:$DG$16,MATCH('Composite Data'!K$2,'EMIS Data'!$A$8:$DG$8,0),FALSE) -> 0 | L5: =VLOOKUP($A5,'EMIS Data'!$A$10:$DG$16,MATCH('Composite Data'!L$2,'EMIS Data'!$A$8:$DG$8,0),FALSE) -> 0 | M5: =VLOOKUP($A5,'EMIS Data'!$A$10:$DG$16,MATCH('Composite Data'!M$2,'EMIS Data'!$A$8:$DG$8,0),FALSE) -> 0 | N5: =VLOOKUP($A5,'EMIS Data'!$A$10:$DG$16,MATCH('Composite Data'!N$2,'EMIS Data'!$A$8:$DG$8,0),FALSE) -> 0 | O5: =VLOOKUP($A5,'EMIS Data'!$A$10:$DG$16,MATCH('Composite Data'!O$2,'EMIS Data'!$A$8:$DG$8,0),FALSE) -> 0 | P5: =VLOOKUP($A5,'EMIS Data'!$A$10:$DG$16,MATCH('Composite Data'!P$2,'EMIS Data'!$A$8:$DG$8,0),FALSE) -> 1 | Q5: =VLOOKUP($A5,'EMIS Data'!$A$10:$DG$16,MATCH('Composite Data'!Q$2,'EMIS Data'!$A$8:$DG$8,0),FALSE) -> 17 | R5: =VLOOKUP($A5,'EMIS Data'!$A$10:$DG$16,MATCH('Composite Data'!R$2,'EMIS Data'!$A$8:$DG$8,0),FALSE) -> 9 | S5: =VLOOKUP($A5,'EMIS Data'!$A$10:$DG$16,MATCH('Composite Data'!S$2,'EMIS Data'!$A$8:$DG$8,0),FALSE) -> 91 | T5: =VLOOKUP($A5,'EMIS Data'!$A$10:$DG$16,MATCH('Composite Data'!T$2,'EMIS Data'!$A$8:$DG$8,0),FALSE) -> 20 | U5: =VLOOKUP($A5,'EMIS Data'!$A$10:$DG$16,MATCH('Composite Data'!U$2,'EMIS Data'!$A$8:$DG$8,0),FALSE) -> 4 | V5: =VLOOKUP($A5,'EMIS Data'!$A$10:$DG$16,MATCH('Composite Data'!V$2,'EMIS Data'!$A$8:$DG$8,0),FALSE) -> 30 | W5: =VLOOKUP($A5,'EMIS Data'!$A$10:$DG$16,MATCH('Composite Data'!W$2,'EMIS Data'!$A$8:$DG$8,0),FALSE) -> 14 | X5: =VLOOKUP($A5,'EMIS Data'!$A$10:$DG$16,MATCH('Composite Data'!X$2,'EMIS Data'!$A$8:$DG$8,0),FALSE) -> 2 | Y5: =VLOOKUP($A5,'EMIS Data'!$A$10:$DG$16,MATCH('Composite Data'!Y$2,'EMIS Data'!$A$8:$DG$8,0),FALSE) -> 16 | Z5: =VLOOKUP($A5,'EMIS Data'!$A$10:$DG$16,MATCH('Composite Data'!Z$2,'EMIS Data'!$A$8:$DG$8,0),FALSE) -> 15 | AA5: =VLOOKUP($A5,'EMIS Data'!$A$10:$DG$16,MATCH('Composite Data'!AA$2,'EMIS Data'!$A$8:$DG$8,0),FALSE) -> 12 | AB5: =VLOOKUP($A5,'EMIS Data'!$A$10:$DG$16,MATCH('Composite Data'!AB$2,'EMIS Data'!$A$8:$DG$8,0),FALSE) -> 30 | AC5: =VLOOKUP($A5,'EMIS Data'!$A$10:$DG$16,MATCH('Composite Data'!AC$2,'EMIS Data'!$A$8:$DG$8,0),FALSE) -> 17 | AD5: =VLOOKUP($A5,'EMIS Data'!$A$10:$DG$16,MATCH('Composite Data'!AD$2,'EMIS Data'!$A$8:$DG$8,0),FALSE) -> 175 | AE5: =VLOOKUP($A5,'EMIS Data'!$A$10:$DG$16,MATCH('Composite Data'!AE$2,'EMIS Data'!$A$8:$DG$8,0),FALSE) -> 31 | AF5: =VLOOKUP($A5,'EMIS Data'!$A$10:$DG$16,MATCH('Composite Data'!AF$2,'EMIS Data'!$A$8:$DG$8,0),FALSE) -> 10 | AG5: =VLOOKUP($A5,'EMIS Data'!$A$10:$DG$16,MATCH('Composite Data'!AG$2,'EMIS Data'!$A$8:$DG$8,0),FALSE) -> 47 | AH5: =VLOOKUP($A5,'EMIS Data'!$A$10:$DG$16,MATCH('Composite Data'!AH$2,'EMIS Data'!$A$8:$DG$8,0),FALSE) -> 0 | AI5: =VLOOKUP($A5,'EMIS Data'!$A$10:$DG$16,MATCH('Composite Data'!AI$2,'EMIS Data'!$A$8:$DG$8,0),FALSE) -> 144 | AJ5: =VLOOKUP($A5,'EMIS Data'!$A$10:$DG$16,MATCH('Composite Data'!AJ$2,'EMIS Data'!$A$8:$DG$8,0),FALSE) -> 163 | AK5: =VLOOKUP($A5,'EMIS Data'!$A$10:$DG$16,MATCH('Composite Data'!AK$2,'EMIS Data'!$A$8:$DG$8,0),FALSE) -> 168 | AL5: =VLOOKUP($A5,'EMIS Data'!$A$10:$DG$16,MATCH('Composite Data'!AL$2,'EMIS Data'!$A$8:$DG$8,0),FALSE) -> 10 | AM5: =VLOOKUP($A5,'EMIS Data'!$A$10:$DG$16,MATCH('Composite Data'!AM$2,'EMIS Data'!$A$8:$DG$8,0),FALSE) -> 24 | AN5: =VLOOKUP($A5,'EMIS Data'!$A$10:$DG$16,MATCH('Composite Data'!AN$2,'EMIS Data'!$A$8:$DG$8,0),FALSE) -> 37 | AO5: =VLOOKUP($A5,'EMIS Data'!$A$10:$DG$16,MATCH('Composite Data'!AO$2,'EMIS Data'!$A$8:$DG$8,0),FALSE) -> 52 | AP5: =VLOOKUP($A5,'EMIS Data'!$A$10:$DG$16,MATCH('Composite Data'!AP$2,'EMIS Data'!$A$8:$DG$8,0),FALSE) -> 51 | AQ5: =VLOOKUP($A5,'EMIS Data'!$A$10:$DG$16,MATCH('Composite Data'!AQ$2,'EMIS Data'!$A$8:$DG$8,0),FALSE) -> 42
A6: POWC 0101 Referral to tissue viability service | B6: =VLOOKUP($A6,'Other Data'!$A$4:$J$10,MATCH('Composite Data'!B$2,'Other Data'!$A$2:$J$2,0),FALSE) ->  | C6: =VLOOKUP($A6,'Other Data'!$A$4:$J$10,MATCH('Composite Data'!C$2,'Other Data'!$A$2:$J$2,0),FALSE) ->  | D6: =VLOOKUP($A6,'Other Data'!$A$4:$J$10,MATCH('Composite Data'!D$2,'Other Data'!$A$2:$J$2,0),FALSE) ->  | E6: =VLOOKUP($A6,'EMIS Data'!$A$10:$DG$16,MATCH('Composite Data'!E$2,'EMIS Data'!$A$8:$DG$8,0),FALSE) -> 1 | F6: =VLOOKUP($A6,'EMIS Data'!$A$10:$DG$16,MATCH('Composite Data'!F$2,'EMIS Data'!$A$8:$DG$8,0),FALSE) -> 0 | G6: =VLOOKUP($A6,'Other Data'!$A$4:$J$10,MATCH('Composite Data'!G$2,'Other Data'!$A$2:$J$2,0),FALSE) ->  | H6: =VLOOKUP($A6,'Other Data'!$A$4:$J$10,MATCH('Composite Data'!H$2,'Other Data'!$A$2:$J$2,0),FALSE) ->  | I6: =VLOOKUP($A6,'EMIS Data'!$A$10:$DG$16,MATCH('Composite Data'!I$2,'EMIS Data'!$A$8:$DG$8,0),FALSE) -> 0 | J6: =VLOOKUP($A6,'EMIS Data'!$A$10:$DH$16,MATCH('Composite Data'!J$2,'EMIS Data'!$A$8:$DH$8,0),FALSE) -> 4 | K6: =VLOOKUP($A6,'EMIS Data'!$A$10:$DG$16,MATCH('Composite Data'!K$2,'EMIS Data'!$A$8:$DG$8,0),FALSE) -> 3 | L6: =VLOOKUP($A6,'EMIS Data'!$A$10:$DG$16,MATCH('Composite Data'!L$2,'EMIS Data'!$A$8:$DG$8,0),FALSE) -> 0 | M6: =VLOOKUP($A6,'EMIS Data'!$A$10:$DG$16,MATCH('Composite Data'!M$2,'EMIS Data'!$A$8:$DG$8,0),FALSE) -> 0 | N6: =VLOOKUP($A6,'EMIS Data'!$A$10:$DG$16,MATCH('Composite Data'!N$2,'EMIS Data'!$A$8:$DG$8,0),FALSE) -> 0 | O6: =VLOOKUP($A6,'EMIS Data'!$A$10:$DG$16,MATCH('Composite Data'!O$2,'EMIS Data'!$A$8:$DG$8,0),FALSE) -> 0 | P6: =VLOOKUP($A6,'EMIS Data'!$A$10:$DG$16,MATCH('Composite Data'!P$2,'EMIS Data'!$A$8:$DG$8,0),FALSE) -> 0 | Q6: =VLOOKUP($A6,'EMIS Data'!$A$10:$DG$16,MATCH('Composite Data'!Q$2,'EMIS Data'!$A$8:$DG$8,0),FALSE) -> 0 | R6: =VLOOKUP($A6,'EMIS Data'!$A$10:$DG$16,MATCH('Composite Data'!R$2,'EMIS Data'!$A$8:$DG$8,0),FALSE) -> 0 | S6: =VLOOKUP($A6,'EMIS Data'!$A$10:$DG$16,MATCH('Composite Data'!S$2,'EMIS Data'!$A$8:$DG$8,0),FALSE) -> 0 | T6: =VLOOKUP($A6,'EMIS Data'!$A$10:$DG$16,MATCH('Composite Data'!T$2,'EMIS Data'!$A$8:$DG$8,0),FALSE) -> 0 | U6: =VLOOKUP($A6,'EMIS Data'!$A$10:$DG$16,MATCH('Composite Data'!U$2,'EMIS Data'!$A$8:$DG$8,0),FALSE) -> 0 | V6: =VLOOKUP($A6,'EMIS Data'!$A$10:$DG$16,MATCH('Composite Data'!V$2,'EMIS Data'!$A$8:$DG$8,0),FALSE) -> 0 | W6: =VLOOKUP($A6,'EMIS Data'!$A$10:$DG$16,MATCH('Composite Data'!W$2,'EMIS Data'!$A$8:$DG$8,0),FALSE) -> 0 | X6: =VLOOKUP($A6,'EMIS Data'!$A$10:$DG$16,MATCH('Composite Data'!X$2,'EMIS Data'!$A$8:$DG$8,0),FALSE) -> 0 | Y6: =VLOOKUP($A6,'EMIS Data'!$A$10:$DG$16,MATCH('Composite Data'!Y$2,'EMIS Data'!$A$8:$DG$8,0),FALSE) -> 0 | Z6: =VLOOKUP($A6,'EMIS Data'!$A$10:$DG$16,MATCH('Composite Data'!Z$2,'EMIS Data'!$A$8:$DG$8,0),FALSE) -> 0 | AA6: =VLOOKUP($A6,'EMIS Data'!$A$10:$DG$16,MATCH('Composite Data'!AA$2,'EMIS Data'!$A$8:$DG$8,0),FALSE) -> 0 | AB6: =VLOOKUP($A6,'EMIS Data'!$A$10:$DG$16,MATCH('Composite Data'!AB$2,'EMIS Data'!$A$8:$DG$8,0),FALSE) -> 0 | AC6: =VLOOKUP($A6,'EMIS Data'!$A$10:$DG$16,MATCH('Composite Data'!AC$2,'EMIS Data'!$A$8:$DG$8,0),FALSE) -> 0 | AD6: =VLOOKUP($A6,'EMIS Data'!$A$10:$DG$16,MATCH('Composite Data'!AD$2,'EMIS Data'!$A$8:$DG$8,0),FALSE) -> 2 | AE6: =VLOOKUP($A6,'EMIS Data'!$A$10:$DG$16,MATCH('Composite Data'!AE$2,'EMIS Data'!$A$8:$DG$8,0),FALSE) -> 0 | AF6: =VLOOKUP($A6,'EMIS Data'!$A$10:$DG$16,MATCH('Composite Data'!AF$2,'EMIS Data'!$A$8:$DG$8,0),FALSE) -> 0 | AG6: =VLOOKUP($A6,'EMIS Data'!$A$10:$DG$16,MATCH('Composite Data'!AG$2,'EMIS Data'!$A$8:$DG$8,0),FALSE) -> 1 | AH6: =VLOOKUP($A6,'EMIS Data'!$A$10:$DG$16,MATCH('Composite Data'!AH$2,'EMIS Data'!$A$8:$DG$8,0),FALSE) -> 0 | AI6: =VLOOKUP($A6,'EMIS Data'!$A$10:$DG$16,MATCH('Composite Data'!AI$2,'EMIS Data'!$A$8:$DG$8,0),FALSE) -> 0 | AJ6: =VLOOKUP($A6,'EMIS Data'!$A$10:$DG$16,MATCH('Composite Data'!AJ$2,'EMIS Data'!$A$8:$DG$8,0),FALSE) -> 0 | AK6: =VLOOKUP($A6,'EMIS Data'!$A$10:$DG$16,MATCH('Composite Data'!AK$2,'EMIS Data'!$A$8:$DG$8,0),FALSE) -> 0 | AL6: =VLOOKUP($A6,'EMIS Data'!$A$10:$DG$16,MATCH('Composite Data'!AL$2,'EMIS Data'!$A$8:$DG$8,0),FALSE) -> 0 | AM6: =VLOOKUP($A6,'EMIS Data'!$A$10:$DG$16,MATCH('Composite Data'!AM$2,'EMIS Data'!$A$8:$DG$8,0),FALSE) -> 0 | AN6: =VLOOKUP($A6,'EMIS Data'!$A$10:$DG$16,MATCH('Composite Data'!AN$2,'EMIS Data'!$A$8:$DG$8,0),FALSE) -> 1 | AO6: =VLOOKUP($A6,'EMIS Data'!$A$10:$DG$16,MATCH('Composite Data'!AO$2,'EMIS Data'!$A$8:$DG$8,0),FALSE) -> 0 | AP6: =VLOOKUP($A6,'EMIS Data'!$A$10:$DG$16,MATCH('Composite Data'!AP$2,'EMIS Data'!$A$8:$DG$8,0),FALSE) -> 1 | AQ6: =VLOOKUP($A6,'EMIS Data'!$A$10:$DG$16,MATCH('Composite Data'!AQ$2,'EMIS Data'!$A$8:$DG$8,0),FALSE) -> 0
A7: POWC 0102 Refer to district nurse | B7: =VLOOKUP($A7,'Other Data'!$A$4:$J$10,MATCH('Composite Data'!B$2,'Other Data'!$A$2:$J$2,0),FALSE) -> 4 | C7: =VLOOKUP($A7,'Other Data'!$A$4:$J$10,MATCH('Composite Data'!C$2,'Other Data'!$A$2:$J$2,0),FALSE) -> 0 | D7: =VLOOKUP($A7,'Other Data'!$A$4:$J$10,MATCH('Composite Data'!D$2,'Other Data'!$A$2:$J$2,0),FALSE) -> 0 | E7: =VLOOKUP($A7,'EMIS Data'!$A$10:$DG$16,MATCH('Composite Data'!E$2,'EMIS Data'!$A$8:$DG$8,0),FALSE) -> 1 | F7: =VLOOKUP($A7,'EMIS Data'!$A$10:$DG$16,MATCH('Composite Data'!F$2,'EMIS Data'!$A$8:$DG$8,0),FALSE) -> 0 | G7: =VLOOKUP($A7,'Other Data'!$A$4:$J$10,MATCH('Composite Data'!G$2,'Other Data'!$A$2:$J$2,0),FALSE) -> 0 | H7: =VLOOKUP($A7,'Other Data'!$A$4:$J$10,MATCH('Composite Data'!H$2,'Other Data'!$A$2:$J$2,0),FALSE) -> 1 | I7: =VLOOKUP($A7,'EMIS Data'!$A$10:$DG$16,MATCH('Composite Data'!I$2,'EMIS Data'!$A$8:$DG$8,0),FALSE) -> 1 | J7: =VLOOKUP($A7,'EMIS Data'!$A$10:$DH$16,MATCH('Composite Data'!J$2,'EMIS Data'!$A$8:$DH$8,0),FALSE) -> 6 | K7: =VLOOKUP($A7,'EMIS Data'!$A$10:$DG$16,MATCH('Composite Data'!K$2,'EMIS Data'!$A$8:$DG$8,0),FALSE) -> 1 | L7: =VLOOKUP($A7,'EMIS Data'!$A$10:$DG$16,MATCH('Composite Data'!L$2,'EMIS Data'!$A$8:$DG$8,0),FALSE) -> 0 | M7: =VLOOKUP($A7,'EMIS Data'!$A$10:$DG$16,MATCH('Composite Data'!M$2,'EMIS Data'!$A$8:$DG$8,0),FALSE) -> 0 | N7: =VLOOKUP($A7,'EMIS Data'!$A$10:$DG$16,MATCH('Composite Data'!N$2,'EMIS Data'!$A$8:$DG$8,0),FALSE) -> 0 | O7: =VLOOKUP($A7,'EMIS Data'!$A$10:$DG$16,MATCH('Composite Data'!O$2,'EMIS Data'!$A$8:$DG$8,0),FALSE) -> 0 | P7: =VLOOKUP($A7,'EMIS Data'!$A$10:$DG$16,MATCH('Composite Data'!P$2,'EMIS Data'!$A$8:$DG$8,0),FALSE) -> 0 | Q7: =VLOOKUP($A7,'EMIS Data'!$A$10:$DG$16,MATCH('Composite Data'!Q$2,'EMIS Data'!$A$8:$DG$8,0),FALSE) -> 0 | R7: =VLOOKUP($A7,'EMIS Data'!$A$10:$DG$16,MATCH('Composite Data'!R$2,'EMIS Data'!$A$8:$DG$8,0),FALSE) -> 0 | S7: =VLOOKUP($A7,'EMIS Data'!$A$10:$DG$16,MATCH('Composite Data'!S$2,'EMIS Data'!$A$8:$DG$8,0),FALSE) -> 0 | T7: =VLOOKUP($A7,'EMIS Data'!$A$10:$DG$16,MATCH('Composite Data'!T$2,'EMIS Data'!$A$8:$DG$8,0),FALSE) -> 0 | U7: =VLOOKUP($A7,'EMIS Data'!$A$10:$DG$16,MATCH('Composite Data'!U$2,'EMIS Data'!$A$8:$DG$8,0),FALSE) -> 0 | V7: =VLOOKUP($A7,'EMIS Data'!$A$10:$DG$16,MATCH('Composite Data'!V$2,'EMIS Data'!$A$8:$DG$8,0),FALSE) -> 0 | W7: =VLOOKUP($A7,'EMIS Data'!$A$10:$DG$16,MATCH('Composite Data'!W$2,'EMIS Data'!$A$8:$DG$8,0),FALSE) -> 0 | X7: =VLOOKUP($A7,'EMIS Data'!$A$10:$DG$16,MATCH('Composite Data'!X$2,'EMIS Data'!$A$8:$DG$8,0),FALSE) -> 0 | Y7: =VLOOKUP($A7,'EMIS Data'!$A$10:$DG$16,MATCH('Composite Data'!Y$2,'EMIS Data'!$A$8:$DG$8,0),FALSE) -> 0 | Z7: =VLOOKUP($A7,'EMIS Data'!$A$10:$DG$16,MATCH('Composite Data'!Z$2,'EMIS Data'!$A$8:$DG$8,0),FALSE) -> 0 | AA7: =VLOOKUP($A7,'EMIS Data'!$A$10:$DG$16,MATCH('Composite Data'!AA$2,'EMIS Data'!$A$8:$DG$8,0),FALSE) -> 0 | AB7: =VLOOKUP($A7,'EMIS Data'!$A$10:$DG$16,MATCH('Composite Data'!AB$2,'EMIS Data'!$A$8:$DG$8,0),FALSE) -> 0 | AC7: =VLOOKUP($A7,'EMIS Data'!$A$10:$DG$16,MATCH('Composite Data'!AC$2,'EMIS Data'!$A$8:$DG$8,0),FALSE) -> 0 | AD7: =VLOOKUP($A7,'EMIS Data'!$A$10:$DG$16,MATCH('Composite Data'!AD$2,'EMIS Data'!$A$8:$DG$8,0),FALSE) -> 6 | AE7: =VLOOKUP($A7,'EMIS Data'!$A$10:$DG$16,MATCH('Composite Data'!AE$2,'EMIS Data'!$A$8:$DG$8,0),FALSE) -> 0 | AF7: =VLOOKUP($A7,'EMIS Data'!$A$10:$DG$16,MATCH('Composite Data'!AF$2,'EMIS Data'!$A$8:$DG$8,0),FALSE) -> 0 | AG7: =VLOOKUP($A7,'EMIS Data'!$A$10:$DG$16,MATCH('Composite Data'!AG$2,'EMIS Data'!$A$8:$DG$8,0),FALSE) -> 0 | AH7: =VLOOKUP($A7,'EMIS Data'!$A$10:$DG$16,MATCH('Composite Data'!AH$2,'EMIS Data'!$A$8:$DG$8,0),FALSE) -> 0 | AI7: =VLOOKUP($A7,'EMIS Data'!$A$10:$DG$16,MATCH('Composite Data'!AI$2,'EMIS Data'!$A$8:$DG$8,0),FALSE) -> 3 | AJ7: =VLOOKUP($A7,'EMIS Data'!$A$10:$DG$16,MATCH('Composite Data'!AJ$2,'EMIS Data'!$A$8:$DG$8,0),FALSE) -> 1 | AK7: =VLOOKUP($A7,'EMIS Data'!$A$10:$DG$16,MATCH('Composite Data'!AK$2,'EMIS Data'!$A$8:$DG$8,0),FALSE) -> 1 | AL7: =VLOOKUP($A7,'EMIS Data'!$A$10:$DG$16,MATCH('Composite Data'!AL$2,'EMIS Data'!$A$8:$DG$8,0),FALSE) -> 0 | AM7: =VLOOKUP($A7,'EMIS Data'!$A$10:$DG$16,MATCH('Composite Data'!AM$2,'EMIS Data'!$A$8:$DG$8,0),FALSE) -> 1 | AN7: =VLOOKUP($A7,'EMIS Data'!$A$10:$DG$16,MATCH('Composite Data'!AN$2,'EMIS Data'!$A$8:$DG$8,0),FALSE) -> 0 | AO7: =VLOOKUP($A7,'EMIS Data'!$A$10:$DG$16,MATCH('Composite Data'!AO$2,'EMIS Data'!$A$8:$DG$8,0),FALSE) -> 0 | AP7: =VLOOKUP($A7,'EMIS Data'!$A$10:$DG$16,MATCH('Composite Data'!AP$2,'EMIS Data'!$A$8:$DG$8,0),FALSE) -> 1 | AQ7: =VLOOKUP($A7,'EMIS Data'!$A$10:$DG$16,MATCH('Composite Data'!AQ$2,'EMIS Data'!$A$8:$DG$8,0),FALSE) -> 0
A8: POWC 0103 Orthopaedic referral | B8: =VLOOKUP($A8,'Other Data'!$A$4:$J$10,MATCH('Composite Data'!B$2,'Other Data'!$A$2:$J$2,0),FALSE) -> 4 | C8: =VLOOKUP($A8,'Other Data'!$A$4:$J$10,MATCH('Composite Data'!C$2,'Other Data'!$A$2:$J$2,0),FALSE) -> 0 | D8: =VLOOKUP($A8,'Other Data'!$A$4:$J$10,MATCH('Composite Data'!D$2,'Other Data'!$A$2:$J$2,0),FALSE) -> 1 | E8: =VLOOKUP($A8,'EMIS Data'!$A$10:$DG$16,MATCH('Composite Data'!E$2,'EMIS Data'!$A$8:$DG$8,0),FALSE) -> 4 | F8: =VLOOKUP($A8,'EMIS Data'!$A$10:$DG$16,MATCH('Composite Data'!F$2,'EMIS Data'!$A$8:$DG$8,0),FALSE) -> 2 | G8: =VLOOKUP($A8,'Other Data'!$A$4:$J$10,MATCH('Composite Data'!G$2,'Other Data'!$A$2:$J$2,0),FALSE) -> 1 | H8: =VLOOKUP($A8,'Other Data'!$A$4:$J$10,MATCH('Composite Data'!H$2,'Other Data'!$A$2:$J$2,0),FALSE) -> 2 | I8: =VLOOKUP($A8,'EMIS Data'!$A$10:$DG$16,MATCH('Composite Data'!I$2,'EMIS Data'!$A$8:$DG$8,0),FALSE) -> 1 | J8: =VLOOKUP($A8,'EMIS Data'!$A$10:$DH$16,MATCH('Composite Data'!J$2,'EMIS Data'!$A$8:$DH$8,0),FALSE) -> 10 | K8: =VLOOKUP($A8,'EMIS Data'!$A$10:$DG$16,MATCH('Composite Data'!K$2,'EMIS Data'!$A$8:$DG$8,0),FALSE) -> 1 | L8: =VLOOKUP($A8,'EMIS Data'!$A$10:$DG$16,MATCH('Composite Data'!L$2,'EMIS Data'!$A$8:$DG$8,0),FALSE) -> 0 | M8: =VLOOKUP($A8,'EMIS Data'!$A$10:$DG$16,MATCH('Composite Data'!M$2,'EMIS Data'!$A$8:$DG$8,0),FALSE) -> 2 | N8: =VLOOKUP($A8,'EMIS Data'!$A$10:$DG$16,MATCH('Composite Data'!N$2,'EMIS Data'!$A$8:$DG$8,0),FALSE) -> 0 | O8: =VLOOKUP($A8,'EMIS Data'!$A$10:$DG$16,MATCH('Composite Data'!O$2,'EMIS Data'!$A$8:$DG$8,0),FALSE) -> 1 | P8: =VLOOKUP($A8,'EMIS Data'!$A$10:$DG$16,MATCH('Composite Data'!P$2,'EMIS Data'!$A$8:$DG$8,0),FALSE) -> 1 | Q8: =VLOOKUP($A8,'EMIS Data'!$A$10:$DG$16,MATCH('Composite Data'!Q$2,'EMIS Data'!$A$8:$DG$8,0),FALSE) -> 1 | R8: =VLOOKUP($A8,'EMIS Data'!$A$10:$DG$16,MATCH('Composite Data'!R$2,'EMIS Data'!$A$8:$DG$8,0),FALSE) -> 1 | S8: =VLOOKUP($A8,'EMIS Data'!$A$10:$DG$16,MATCH('Composite Data'!S$2,'EMIS Data'!$A$8:$DG$8,0),FALSE) -> 5 | T8: =VLOOKUP($A8,'EMIS Data'!$A$10:$DG$16,MATCH('Composite Data'!T$2,'EMIS Data'!$A$8:$DG$8,0),FALSE) -> 2 | U8: =VLOOKUP($A8,'EMIS Data'!$A$10:$DG$16,MATCH('Composite Data'!U$2,'EMIS Data'!$A$8:$DG$8,0),FALSE) -> 1 | V8: =VLOOKUP($A8,'EMIS Data'!$A$10:$DG$16,MATCH('Composite Data'!V$2,'EMIS Data'!$A$8:$DG$8,0),FALSE) -> 1 | W8: =VLOOKUP($A8,'EMIS Data'!$A$10:$DG$16,MATCH('Composite Data'!W$2,'EMIS Data'!$A$8:$DG$8,0),FALSE) -> 0 | X8: =VLOOKUP($A8,'EMIS Data'!$A$10:$DG$16,MATCH('Composite Data'!X$2,'EMIS Data'!$A$8:$DG$8,0),FALSE) -> 0 | Y8: =VLOOKUP($A8,'EMIS Data'!$A$10:$DG$16,MATCH('Composite Data'!Y$2,'EMIS Data'!$A$8:$DG$8,0),FALSE) -> 2 | Z8: =VLOOKUP($A8,'EMIS Data'!$A$10:$DG$16,MATCH('Composite Data'!Z$2,'EMIS Data'!$A$8:$DG$8,0),FALSE) -> 2 | AA8: =VLOOKUP($A8,'EMIS Data'!$A$10:$DG$16,MATCH('Composite Data'!AA$2,'EMIS Data'!$A$8:$DG$8,0),FALSE) -> 2 | AB8: =VLOOKUP($A8,'EMIS Data'!$A$10:$DG$16,MATCH('Composite Data'!AB$2,'EMIS Data'!$A$8:$DG$8,0),FALSE) -> 4 | AC8: =VLOOKUP($A8,'EMIS Data'!$A$10:$DG$16,MATCH('Composite Data'!AC$2,'EMIS Data'!$A$8:$DG$8,0),FALSE) -> 1 | AD8: =VLOOKUP($A8,'EMIS Data'!$A$10:$DG$16,MATCH('Composite Data'!AD$2,'EMIS Data'!$A$8:$DG$8,0),FALSE) -> 13 | AE8: =VLOOKUP($A8,'EMIS Data'!$A$10:$DG$16,MATCH('Composite Data'!AE$2,'EMIS Data'!$A$8:$DG$8,0),FALSE) -> 0 | AF8: =VLOOKUP($A8,'EMIS Data'!$A$10:$DG$16,MATCH('Composite Data'!AF$2,'EMIS Data'!$A$8:$DG$8,0),FALSE) -> 1 | AG8: =VLOOKUP($A8,'EMIS Data'!$A$10:$DG$16,MATCH('Composite Data'!AG$2,'EMIS Data'!$A$8:$DG$8,0),FALSE) -> 2 | AH8: =VLOOKUP($A8,'EMIS Data'!$A$10:$DG$16,MATCH('Composite Data'!AH$2,'EMIS Data'!$A$8:$DG$8,0),FALSE) -> 0 | AI8: =VLOOKUP($A8,'EMIS Data'!$A$10:$DG$16,MATCH('Composite Data'!AI$2,'EMIS Data'!$A$8:$DG$8,0),FALSE) -> 3 | AJ8: =VLOOKUP($A8,'EMIS Data'!$A$10:$DG$16,MATCH('Composite Data'!AJ$2,'EMIS Data'!$A$8:$DG$8,0),FALSE) -> 3 | AK8: =VLOOKUP($A8,'EMIS Data'!$A$10:$DG$16,MATCH('Composite Data'!AK$2,'EMIS Data'!$A$8:$DG$8,0),FALSE) -> 6 | AL8: =VLOOKUP($A8,'EMIS Data'!$A$10:$DG$16,MATCH('Composite Data'!AL$2,'EMIS Data'!$A$8:$DG$8,0),FALSE) -> 0 | AM8: =VLOOKUP($A8,'EMIS Data'!$A$10:$DG$16,MATCH('Composite Data'!AM$2,'EMIS Data'!$A$8:$DG$8,0),FALSE) -> 3 | AN8: =VLOOKUP($A8,'EMIS Data'!$A$10:$DG$16,MATCH('Composite Data'!AN$2,'EMIS Data'!$A$8:$DG$8,0),FALSE) -> 2 | AO8: =VLOOKUP($A8,'EMIS Data'!$A$10:$DG$16,MATCH('Composite Data'!AO$2,'EMIS Data'!$A$8:$DG$8,0),FALSE) -> 1 | AP8: =VLOOKUP($A8,'EMIS Data'!$A$10:$DG$16,MATCH('Composite Data'!AP$2,'EMIS Data'!$A$8:$DG$8,0),FALSE) -> 3 | AQ8: =VLOOKUP($A8,'EMIS Data'!$A$10:$DG$16,MATCH('Composite Data'!AQ$2,'EMIS Data'!$A$8:$DG$8,0),FALSE) -> 2
A9: POWC 0104 Advice given about wound care | B9: =VLOOKUP($A9,'Other Data'!$A$4:$J$10,MATCH('Composite Data'!B$2,'Other Data'!$A$2:$J$2,0),FALSE) -> 89 | C9: =VLOOKUP($A9,'Other Data'!$A$4:$J$10,MATCH('Composite Data'!C$2,'Other Data'!$A$2:$J$2,0),FALSE) -> 21 | D9: =VLOOKUP($A9,'Other Data'!$A$4:$J$10,MATCH('Composite Data'!D$2,'Other Data'!$A$2:$J$2,0),FALSE) -> 0 | E9: =VLOOKUP($A9,'EMIS Data'!$A$10:$DG$16,MATCH('Composite Data'!E$2,'EMIS Data'!$A$8:$DG$8,0),FALSE) -> 155 | F9: =VLOOKUP($A9,'EMIS Data'!$A$10:$DG$16,MATCH('Composite Data'!F$2,'EMIS Data'!$A$8:$DG$8,0),FALSE) -> 2 | G9: =VLOOKUP($A9,'Other Data'!$A$4:$J$10,MATCH('Composite Data'!G$2,'Other Data'!$A$2:$J$2,0),FALSE) -> 0 | H9: =VLOOKUP($A9,'Other Data'!$A$4:$J$10,MATCH('Composite Data'!H$2,'Other Data'!$A$2:$J$2,0),FALSE) -> 1 | I9: =VLOOKUP($A9,'EMIS Data'!$A$10:$DG$16,MATCH('Composite Data'!I$2,'EMIS Data'!$A$8:$DG$8,0),FALSE) -> 1 | J9: =VLOOKUP($A9,'EMIS Data'!$A$10:$DH$16,MATCH('Composite Data'!J$2,'EMIS Data'!$A$8:$DH$8,0),FALSE) -> 75 | K9: =VLOOKUP($A9,'EMIS Data'!$A$10:$DG$16,MATCH('Composite Data'!K$2,'EMIS Data'!$A$8:$DG$8,0),FALSE) -> 25 | L9: =VLOOKUP($A9,'EMIS Data'!$A$10:$DG$16,MATCH('Composite Data'!L$2,'EMIS Data'!$A$8:$DG$8,0),FALSE) -> 0 | M9: =VLOOKUP($A9,'EMIS Data'!$A$10:$DG$16,MATCH('Composite Data'!M$2,'EMIS Data'!$A$8:$DG$8,0),FALSE) -> 0 | N9: =VLOOKUP($A9,'EMIS Data'!$A$10:$DG$16,MATCH('Composite Data'!N$2,'EMIS Data'!$A$8:$DG$8,0),FALSE) -> 7 | O9: =VLOOKUP($A9,'EMIS Data'!$A$10:$DG$16,MATCH('Composite Data'!O$2,'EMIS Data'!$A$8:$DG$8,0),FALSE) -> 0 | P9: =VLOOKUP($A9,'EMIS Data'!$A$10:$DG$16,MATCH('Composite Data'!P$2,'EMIS Data'!$A$8:$DG$8,0),FALSE) -> 0 | Q9: =VLOOKUP($A9,'EMIS Data'!$A$10:$DG$16,MATCH('Composite Data'!Q$2,'EMIS Data'!$A$8:$DG$8,0),FALSE) -> 2 | R9: =VLOOKUP($A9,'EMIS Data'!$A$10:$DG$16,MATCH('Composite Data'!R$2,'EMIS Data'!$A$8:$DG$8,0),FALSE) -> 0 | S9: =VLOOKUP($A9,'EMIS Data'!$A$10:$DG$16,MATCH('Composite Data'!S$2,'EMIS Data'!$A$8:$DG$8,0),FALSE) -> 0 | T9: =VLOOKUP($A9,'EMIS Data'!$A$10:$DG$16,MATCH('Composite Data'!T$2,'EMIS Data'!$A$8:$DG$8,0),FALSE) -> 3 | U9: =VLOOKUP($A9,'EMIS Data'!$A$10:$DG$16,MATCH('Composite Data'!U$2,'EMIS Data'!$A$8:$DG$8,0),FALSE) -> 0 | V9: =VLOOKUP($A9,'EMIS Data'!$A$10:$DG$16,MATCH('Composite Data'!V$2,'EMIS Data'!$A$8:$DG$8,0),FALSE) -> 7 | W9: =VLOOKUP($A9,'EMIS Data'!$A$10:$DG$16,MATCH('Composite Data'!W$2,'EMIS Data'!$A$8:$DG$8,0),FALSE) -> 0 | X9: =VLOOKUP($A9,'EMIS Data'!$A$10:$DG$16,MATCH('Composite Data'!X$2,'EMIS Data'!$A$8:$DG$8,0),FALSE) -> 1 | Y9: =VLOOKUP($A9,'EMIS Data'!$A$10:$DG$16,MATCH('Composite Data'!Y$2,'EMIS Data'!$A$8:$DG$8,0),FALSE) -> 4 | Z9: =VLOOKUP($A9,'EMIS Data'!$A$10:$DG$16,MATCH('Composite Data'!Z$2,'EMIS Data'!$A$8:$DG$8,0),FALSE) -> 3 | AA9: =VLOOKUP($A9,'EMIS Data'!$A$10:$DG$16,MATCH('Composite Data'!AA$2,'EMIS Data'!$A$8:$DG$8,0),FALSE) -> 0 | AB9: =VLOOKUP($A9,'EMIS Data'!$A$10:$DG$16,MATCH('Composite Data'!AB$2,'EMIS Data'!$A$8:$DG$8,0),FALSE) -> 5 | AC9: =VLOOKUP($A9,'EMIS Data'!$A$10:$DG$16,MATCH('Composite Data'!AC$2,'EMIS Data'!$A$8:$DG$8,0),FALSE) -> 0 | AD9: =VLOOKUP($A9,'EMIS Data'!$A$10:$DG$16,MATCH('Composite Data'!AD$2,'EMIS Data'!$A$8:$DG$8,0),FALSE) -> 16 | AE9: =VLOOKUP($A9,'EMIS Data'!$A$10:$DG$16,MATCH('Composite Data'!AE$2,'EMIS Data'!$A$8:$DG$8,0),FALSE) -> 2 | AF9: =VLOOKUP($A9,'EMIS Data'!$A$10:$DG$16,MATCH('Composite Data'!AF$2,'EMIS Data'!$A$8:$DG$8,0),FALSE) -> 1 | AG9: =VLOOKUP($A9,'EMIS Data'!$A$10:$DG$16,MATCH('Composite Data'!AG$2,'EMIS Data'!$A$8:$DG$8,0),FALSE) -> 22 | AH9: =VLOOKUP($A9,'EMIS Data'!$A$10:$DG$16,MATCH('Composite Data'!AH$2,'EMIS Data'!$A$8:$DG$8,0),FALSE) -> 0 | AI9: =VLOOKUP($A9,'EMIS Data'!$A$10:$DG$16,MATCH('Composite Data'!AI$2,'EMIS Data'!$A$8:$DG$8,0),FALSE) -> 19 | AJ9: =VLOOKUP($A9,'EMIS Data'!$A$10:$DG$16,MATCH('Composite Data'!AJ$2,'EMIS Data'!$A$8:$DG$8,0),FALSE) -> 32 | AK9: =VLOOKUP($A9,'EMIS Data'!$A$10:$DG$16,MATCH('Composite Data'!AK$2,'EMIS Data'!$A$8:$DG$8,0),FALSE) -> 60 | AL9: =VLOOKUP($A9,'EMIS Data'!$A$10:$DG$16,MATCH('Composite Data'!AL$2,'EMIS Data'!$A$8:$DG$8,0),FALSE) -> 2 | AM9: =VLOOKUP($A9,'EMIS Data'!$A$10:$DG$16,MATCH('Composite Data'!AM$2,'EMIS Data'!$A$8:$DG$8,0),FALSE) -> 17 | AN9: =VLOOKUP($A9,'EMIS Data'!$A$10:$DG$16,MATCH('Composite Data'!AN$2,'EMIS Data'!$A$8:$DG$8,0),FALSE) -> 0 | AO9: =VLOOKUP($A9,'EMIS Data'!$A$10:$DG$16,MATCH('Composite Data'!AO$2,'EMIS Data'!$A$8:$DG$8,0),FALSE) -> 1 | AP9: =VLOOKUP($A9,'EMIS Data'!$A$10:$DG$16,MATCH('Composite Data'!AP$2,'EMIS Data'!$A$8:$DG$8,0),FALSE) -> 0 | AQ9: =VLOOKUP($A9,'EMIS Data'!$A$10:$DG$16,MATCH('Composite Data'!AQ$2,'EMIS Data'!$A$8:$DG$8,0),FALSE) -> 31

Sheet EMIS Data
A1: POWC 2022 Audit Report
A3: Last Run: | B3: 2023-05-09T14:40:00 | C3: Relative Date: | D3: 2023-04-01
A5: Population Count | B5: Males | C5: Females
A6: 836881 | B6: 421081 | C6: 415800
B8: Organisation Code | C8: F82001 | D8: F82002 | E8: F82003 | F8: F82005 | G8: F82006 | H8: F82007 | I8: F82008 | J8: F82009 | K8: F82010 | L8: F82011 | M8: F82012 | N8: F82013 | O8: F82014 | P8: F82015 | Q8: F82016 | R8: F82017 | S8: F82018 | T8: F82019 | U8: F82021 | V8: F82022 | W8: F82023 | X8: F82025 | Y8: F82027 | Z8: F82028 | AA8: F82030 | AB8: F82031 | AC8: F82033 | AD8: F82034 | AE8: F82038 | AF8: F82039 | AG8: F82040 | AH8: F82042 | AI8: F82045 | AJ8: F82051 | AK8: F82053 | AL8: F82055 | AM8: F82604 | AN8: F82607 | AO8: F82609 | AP8: F82610 | AQ8: F82612 | AR8: F82619 | AS8: F82621 | AT8: F82624 | AU8: F82625 | AV8: F82627 | AW8: F82630 | AX8: F82634 | AY8: F82638 | AZ8: F82642 | BA8: F82647 | BB8: F82648 | BC8: F82649 | BD8: F82650 | BE8: F82660 | BF8: F82661 | BG8: F82663 | BH8: F82666 | BI8: F82670 | BJ8: F82671 | BK8: F82674 | BL8: F82675 | BM8: F82677 | BN8: F82678 | BO8: F82679 | BP8: F82686 | BQ8: F86007 | BR8: F86008 | BS8: F86009 | BT8: F86010 | BU8: F86012 | BV8: F86020 | BW8: F86022 | BX8: F86023 | BY8: F86028 | BZ8: F86032 | CA8: F86034 | CB8: F86040 | CC8: F86042 | CD8: F86057 | CE8: F86060 | CF8: F86064 | CG8: F86066 | CH8: F86081 | CI8: F86083 | CJ8: F86085 | CK8: F86087 | CL8: F86612 | CM8: F86624 | CN8: F86637 | CO8: F86641 | CP8: F86642 | CQ8: F86652 | CR8: F86658 | CS8: F86691 | CT8: F86692 | CU8: F86698 | CV8: F86702 | CW8: F86703 | CX8: F86707 | CY8: F86731 | CZ8: Y00090 | DA8: Y00312 | DB8: Y00918 | DC8: Y01280 | DD8: Y01719 | DE8: Y01795 | DF8: Y02575 | DG8: Y02973 | DH8: Y02987
A9: Search
A10: Currently Registered Regular Patients | C10: 5959 | D10: 6645 | E10: 5922 | F10: 6593 | G10: 12535 | H10: 10996 | I10: 13578 | J10: 20549 | K10: 8239 | L10: 9929 | M10: 3957 | N10: 17471 | O10: 7323 | P10: 5088 | Q10: 6804 | R10: 8722 | S10: 11384 | T10: 6609 | U10: 9949 | V10: 12422 | W10: 3286 | X10: 5746 | Y10: 2102 | Z10: 9646 | AA10: 14301 | AB10: 4310 | AC10: 3488 | AD10: 5613 | AE10: 5273 | AF10: 4106 | AG10: 3312 | AH10: 19636 | AI10: 3499 | AJ10: 9671 | AK10: 3245 | AL10: 9976 | AM10: 5539 | AN10: 5297 | AO10: 4561 | AP10: 2896 | AQ10: 6123 | AR10: 3846 | AS10: 4500 | AT10: 3971 | AU10: 7360 | AV10: 5800 | AW10: 7198 | AX10: 5992 | AY10: 7051 | AZ10: 7136 | BA10: 4982 | BB10: 3611 | BC10: 4473 | BD10: 9491 | BE10: 20551 | BF10: 4075 | BG10: 4030 | BH10: 5156 | BI10: 3766 | BJ10: 3287 | BK10: 5391 | BL10: 3527 | BM10: 7312 | BN10: 4904 | BO10: 5548 | BP10: 4001 | BQ10: 13665 | BR10: 11581 | BS10: 7561 | BT10: 15563 | BU10: 9522 | BV10: 5826 | BW10: 14533 | BX10: 9894 | BY10: 10674 | BZ10: 9305 | CA10: 6154 | CB10: 5658 | CC10: 6270 | CD10: 6471 | CE10: 15710 | CF10: 4778 | CG10: 7890 | CH10: 6454 | CI10: 6785 | CJ10: 3500 | CK10: 7626 | CL10: 3307 | CM10: 3122 | CN10: 4918 | CO10: 7920 | CP10: 5086 | CQ10: 7227 | CR10: 5508 | CS10: 10967 | CT10: 10879 | CU10: 5433 | CV10: 5186 | CW10: 3834 | CX10: 6752 | CY10: 4627 | CZ10: 8283 | DA10: 4843 | DB10: 6592 | DC10: 2380 | DD10: 7598 | DE10: 4647 | DF10: 21080 | DG10: 8671 | DH10: 29551
A11: POWC 01 Post-operative wound care 2022 | C11: 45 | D11: 13 | E11: 36 | F11: 55 | G11: 16 | H11: 71 | I11: 33 | J11: 44 | K11: 8 | L11: 4 | M11: 13 | N11: 9 | O11: 14 | P11: 29 | Q11: 3 | R11: 88 | S11: 60 | T11: 43 | U11: 9 | V11: 14 | W11: 8 | X11: 53 | Y11: 14 | Z11: 9 | AA11: 25 | AB11: 64 | AC11: 3 | AD11: 37 | AE11: 22 | AF11: 2 | AG11: 15 | AH11: 80 | AI11: 3 | AJ11: 26 | AK11: 0 | AL11: 6 | AM11: 14 | AN11: 49 | AO11: 3 | AP11: 3 | AQ11: 41 | AR11: 1 | AS11: 13 | AT11: 6 | AU11: 27 | AV11: 4 | AW11: 3 | AX11: 36 | AY11: 10 | AZ11: 21 | BA11: 17 | BB11: 9 | BC11: 3 | BD11: 40 | BE11: 139 | BF11: 26 | BG11: 5 | BH11: 5 | BI11: 1 | BJ11: 2 | BK11: 2 | BL11: 2 | BM11: 20 | BN11: 10 | BO11: 37 | BP11: 18 | BQ11: 165 | BR11: 37 | BS11: 39 | BT11: 50 | BU11: 33 | BV11: 20 | BW11: 6 | BX11: 86 | BY11: 71 | BZ11: 54 | CA11: 0 | CB11: 11 | CC11: 33 | CD11: 15 | CE11: 9 | CF11: 27 | CG11: 93 | CH11: 11 | CI11: 27 | CJ11: 7 | CK11: 12 | CL11: 10 | CM11: 2 | CN11: 11 | CO11: 20 | CP11: 4 | CQ11: 12 | CR11: 5 | CS11: 42 | CT11: 6 | CU11: 11 | CV11: 1 | CW11: 24 | CX11: 14 | CY11: 18 | CZ11: 4 | DA11: 5 | DB11: 30 | DC11: 5 | DD11: 23 | DE11: 21 | DF11: 35 | DG11: 10 | DH11: 120
A12: POWC 0101 Referral to tissue viability service | C12: 2 | D12: 1 | E12: 1 | F12: 1 | G12: 0 | H12: 1 | I12: 0 | J12: 1 | K12: 0 | L12: 0 | M12: 1 | N12: 0 | O12: 0 | P12: 2 | Q12: 0 | R12: 0 | S12: 0 | T12: 1 | U12: 0 | V12: 0 | W12: 0 | X12: 0 | Y12: 0 | Z12: 0 | AA12: 0 | AB12: 2 | AC12: 0 | AD12: 2 | AE12: 1 | AF12: 0 | AG12: 0 | AH12: 3 | AI12: 0 | AJ12: 0 | AK12: 0 | AL12: 0 | AM12: 1 | AN12: 0 | AO12: 0 | AP12: 0 | AQ12: 0 | AR12: 0 | AS12: 2 | AT12: 0 | AU12: 0 | AV12: 0 | AW12: 0 | AX12: 0 | AY12: 0 | AZ12: 0 | BA12: 1 | BB12: 0 | BC12: 0 | BD12: 0 | BE12: 4 | BF12: 0 | BG12: 0 | BH12: 0 | BI12: 0 | BJ12: 0 | BK12: 0 | BL12: 0 | BM12: 0 | BN12: 0 | BO12: 0 | BP12: 0 | BQ12: 1 | BR12: 0 | BS12: 1 | BT12: 0 | BU12: 1 | BV12: 0 | BW12: 0 | BX12: 0 | BY12: 0 | BZ12: 0 | CA12: 0 | CB12: 0 | CC12: 1 | CD12: 0 | CE12: 0 | CF12: 0 | CG12: 2 | CH12: 0 | CI12: 0 | CJ12: 0 | CK12: 0 | CL12: 0 | CM12: 0 | CN12: 0 | CO12: 0 | CP12: 0 | CQ12: 0 | CR12: 0 | CS12: 0 | CT12: 0 | CU12: 0 | CV12: 0 | CW12: 0 | CX12: 0 | CY12: 0 | CZ12: 0 | DA12: 0 | DB12: 3 | DC12: 0 | DD12: 0 | DE12: 0 | DF12: 0 | DG12: 0 | DH12: 4
A13: POWC 0102 Refer to district nurse | C13: 2 | D13: 0 | E13: 3 | F13: 1 | G13: 0 | H13: 0 | I13: 0 | J13: 1 | K13: 0 | L13: 1 | M13: 0 | N13: 0 | O13: 0 | P13: 1 | Q13: 0 | R13: 0 | S13: 1 | T13: 0 | U13: 0 | V13: 0 | W13: 0 | X13: 1 | Y13: 0 | Z13: 0 | AA13: 0 | AB13: 2 | AC13: 0 | AD13: 2 | AE13: 0 | AF13: 0 | AG13: 1 | AH13: 0 | AI13: 0 | AJ13: 0 | AK13: 0 | AL13: 0 | AM13: 0 | AN13: 0 | AO13: 0 | AP13: 0 | AQ13: 1 | AR13: 0 | AS13: 0 | AT13: 0 | AU13: 0 | AV13: 0 | AW13: 0 | AX13: 0 | AY13: 0 | AZ13: 1 | BA13: 0 | BB13: 0 | BC13: 0 | BD13: 1 | BE13: 0 | BF13: 2 | BG13: 0 | BH13: 0 | BI13: 0 | BJ13: 0 | BK13: 0 | BL13: 0 | BM13: 0 | BN13: 0 | BO13: 0 | BP13: 1 | BQ13: 1 | BR13: 0 | BS13: 1 | BT13: 0 | BU13: 0 | BV13: 1 | BW13: 0 | BX13: 1 | BY13: 1 | BZ13: 3 | CA13: 0 | CB13: 0 | CC13: 0 | CD13: 0 | CE13: 0 | CF13: 0 | CG13: 6 | CH13: 0 | CI13: 0 | CJ13: 0 | CK13: 0 | CL13: 0 | CM13: 0 | CN13: 0 | CO13: 0 | CP13: 0 | CQ13: 0 | CR13: 1 | CS13: 0 | CT13: 0 | CU13: 0 | CV13: 0 | CW13: 0 | CX13: 0 | CY13: 0 | CZ13: 0 | DA13: 0 | DB13: 1 | DC13: 0 | DD13: 0 | DE13: 1 | DF13: 0 | DG13: 0 | DH13: 6
A14: POWC 0103 Orthopaedic referral | C14: 0 | D14: 0 | E14: 2 | F14: 8 | G14: 1 | H14: 2 | I14: 2 | J14: 6 | K14: 0 | L14: 1 | M14: 0 | N14: 1 | O14: 0 | P14: 1 | Q14: 0 | R14: 1 | S14: 2 | T14: 1 | U14: 1 | V14: 1 | W14: 1 | X14: 8 | Y14: 1 | Z14: 0 | AA14: 0 | AB14: 5 | AC14: 1 | AD14: 3 | AE14: 3 | AF14: 0 | AG14: 0 | AH14: 5 | AI14: 1 | AJ14: 2 | AK14: 0 | AL14: 0 | AM14: 2 | AN14: 4 | AO14: 2 | AP14: 0 | AQ14: 4 | AR14: 0 | AS14: 1 | AT14: 0 | AU14: 0 | AV14: 0 | AW14: 0 | AX14: 3 | AY14: 3 | AZ14: 2 | BA14: 3 | BB14: 1 | BC14: 0 | BD14: 7 | BE14: 11 | BF14: 4 | BG14: 0 | BH14: 0 | BI14: 0 | BJ14: 0 | BK14: 0 | BL14: 0 | BM14: 0 | BN14: 0 | BO14: 1 | BP14: 1 | BQ14: 4 | BR14: 2 | BS14: 3 | BT14: 1 | BU14: 2 | BV14: 3 | BW14: 0 | BX14: 6 | BY14: 3 | BZ14: 3 | CA14: 0 | CB14: 2 | CC14: 2 | CD14: 2 | CE14: 1 | CF14: 0 | CG14: 13 | CH14: 1 | CI14: 4 | CJ14: 2 | CK14: 2 | CL14: 2 | CM14: 0 | CN14: 0 | CO14: 1 | CP14: 1 | CQ14: 2 | CR14: 1 | CS14: 5 | CT14: 1 | CU14: 1 | CV14: 1 | CW14: 1 | CX14: 0 | CY14: 2 | CZ14: 0 | DA14: 1 | DB14: 1 | DC14: 0 | DD14: 2 | DE14: 1 | DF14: 1 | DG14: 0 | DH14: 10
A15: POWC 0104 Advice given about wound care | C15: 15 | D15: 0 | E15: 11 | F15: 1 | G15: 2 | H15: 11 | I15: 0 | J15: 2 | K15: 1 | L15: 0 | M15: 1 | N15: 0 | O15: 0 | P15: 4 | Q15: 0 | R15: 9 | S15: 6 | T15: 6 | U15: 0 | V15: 0 | W15: 4 | X15: 0 | Y15: 3 | Z15: 0 | AA15: 1 | AB15: 0 | AC15: 0 | AD15: 25 | AE15: 3 | AF15: 0 | AG15: 2 | AH15: 5 | AI15: 0 | AJ15: 2 | AK15: 0 | AL15: 0 | AM15: 2 | AN15: 45 | AO15: 0 | AP15: 1 | AQ15: 2 | AR15: 1 | AS15: 1 | AT15: 0 | AU15: 10 | AV15: 0 | AW15: 2 | AX15: 0 | AY15: 0 | AZ15: 0 | BA15: 5 | BB15: 1 | BC15: 0 | BD15: 2 | BE15: 21 | BF15: 0 | BG15: 0 | BH15: 0 | BI15: 0 | BJ15: 0 | BK15: 0 | BL15: 0 | BM15: 6 | BN15: 0 | BO15: 5 | BP15: 3 | BQ15: 155 | BR15: 31 | BS15: 0 | BT15: 1 | BU15: 0 | BV15: 17 | BW15: 2 | BX15: 60 | BY15: 32 | BZ15: 19 | CA15: 0 | CB15: 0 | CC15: 22 | CD15: 2 | CE15: 1 | CF15: 2 | CG15: 16 | CH15: 0 | CI15: 5 | CJ15: 0 | CK15: 3 | CL15: 4 | CM15: 1 | CN15: 0 | CO15: 7 | CP15: 0 | CQ15: 3 | CR15: 1 | CS15: 0 | CT15: 0 | CU15: 2 | CV15: 0 | CW15: 0 | CX15: 7 | CY15: 0 | CZ15: 0 | DA15: 0 | DB15: 25 | DC15: 0 | DD15: 7 | DE15: 3 | DF15: 2 | DG15: 1 | DH15: 75
A16: POWC 01 Post-operative wound care Activity | C16: =IFERROR(VLOOKUP(C8,$A$23:$B$118,2,FALSE),0) -> 205 | D16: =IFERROR(VLOOKUP(D8,$A$23:$B$118,2,FALSE),0) -> 26 | E16: 136 | F16: 176 | G16: 25 | H16: 130 | I16: 43 | J16: 118 | K16: 10 | L16: 6 | M16: 79 | N16: 23 | O16: 23 | P16: 112 | Q16: 55 | R16: 227 | S16: 196 | T16: 69 | U16: 12 | V16: 19 | W16: 17 | X16: 144 | Y16: 36 | Z16: 17 | AA16: 28 | AB16: 156 | AC16: 10 | AD16: 168 | AE16: 59 | AF16: 2 | AG16: 44 | AH16: 411 | AI16: 3 | AJ16: 56 | AK16: 0 | AL16: 10 | AM16: 23 | AN16: 287 | AO16: 4 | AP16: 4 | AQ16: 130 | AR16: 1 | AS16: 42 | AT16: 17 | AU16: 180 | AV16: 26 | AW16: 23 | AX16: 123 | AY16: 11 | AZ16: 54 | BA16: 45 | BB16: 13 | BC16: 3 | BD16: 199 | BE16: 682 | BF16: 105 | BG16: 5 | BH16: 6 | BI16: 1 | BJ16: 2 | BK16: 3 | BL16: 3 | BM16: 58 | BN16: 37 | BO16: 96 | BP16: =IFERROR(VLOOKUP(BP8,$A$23:$B$118,2,FALSE),0) -> 51 | BQ16: 419 | BR16: 42 | BS16: 51 | BT16: 52 | BU16: 37 | BV16: 24 | BW16: 10 | BX16: 168 | BY16: 163 | BZ16: 144 | CA16: 0 | CB16: 13 | CC16: 47 | CD16: 23 | CE16: 10 | CF16: 31 | CG16: 175 | CH16: 17 | CI16: 30 | CJ16: 12 | CK16: 15 | CL16: 16 | CM16: 2 | CN16: 14 | CO16: 30 | CP16: 4 | CQ16: 20 | CR16: 6 | CS16: 91 | CT16: 9 | CU16: 17 | CV16: 1 | CW16: 0 | CX16: 0 | CY16: 0 | CZ16: 0 | DA16: 0 | DB16: 0 | DC16: 0 | DD16: 0 | DE16: 0 | DF16: 0 | DG16: 0 | DH16: 0
A23: F82001 | B23: 205
A24: F82002 | B24: 26
A25: F82003 | B25: 136
A26: F82005 | B26: 176
A27: F82006 | B27: 25
A28: F82007 | B28: 130
A29: F82008 | B29: 43
A30: F82009 | B30: 118
A31: F82010 | B31: 10
A32: F82011 | B32: 6
A33: F82012 | B33: 79
A34: F82013 | B34: 23
A35: F82014 | B35: 23
A36: F82015 | B36: 112
A37: F82016 | B37: 55
A38: F82017 | B38: 227
A39: F82018 | B39: 196
A40: F82019 | B40: 69
A41: F82021 | B41: 12
A42: F82022 | B42: 19
A43: F82023 | B43: 17
A44: F82025 | B44: 144
A45: F82027 | B45: 36
A46: F82028 | B46: 17
A47: F82030 | B47: 28
A48: F82031 | B48: 156
A49: F82033 | B49: 10
A50: F82034 | B50: 168
A51: F82038 | B51: 59
A52: F82039 | B52: 2
A53: F82040 | B53: 44
A54: F82042 | B54: 411
A55: F82045 | B55: 3
A56: F82051 | B56: 56
A57: F82055 | B57: 10
A58: F82604 | B58: 23
A59: F82607 | B59: 287
A60: F82609 | B60: 4
A61: F82610 | B61: 4
A62: F82612 | B62: 130
A63: F82619 | B63: 1
A64: F82621 | B64: 42
A65: F82624 | B65: 17
A66: F82625 | B66: 180
A67: F82627 | B67: 26
A68: F82630 | B68: 23
A69: F82634 | B69: 123
A70: F82638 | B70: 11
A71: F82642 | B71: 54
A72: F82647 | B72: 45
A73: F82648 | B73: 13
A74: F82649 | B74: 3
A75: F82650 | B75: 199
A76: F82660 | B76: 682
A77: F82661 | B77: 105
A78: F82663 | B78: 5
A79: F82666 | B79: 6
A80: F82670 | B80: 1
A81: F82671 | B81: 2
A82: F82674 | B82: 3
A83: F82675 | B83: 3
A84: F82677 | B84: 58
A85: F82678 | B85: 37
A86: F82679 | B86: 96
A87: F82686 | B87: 51
A88: F86007 | B88: 419
A89: F86008 | B89: 42
A90: F86009 | B90: 51
A91: F86010 | B91: 52
A92: F86012 | B92: 37
A93: F86020 | B93: 24
A94: F86022 | B94: 10
A95: F86023 | B95: 168
A96: F86028 | B96: 163
A97: F86032 | B97: 144
A98: F86040 | B98: 13
A99: F86042 | B99: 47
A100: F86057 | B100: 23
A101: F86060 | B101: 10
A102: F86064 | B102: 31
A103: F86066 | B103: 175
A104: F86081 | B104: 17
A105: F86083 | B105: 30
A106: F86085 | B106: 12
A107: F86087 | B107: 15
A108: F86612 | B108: 16
A109: F86624 | B109: 2
A110: F86637 | B110: 14
A111: F86641 | B111: 30
A112: F86642 | B112: 4
A113: F86652 | B113: 20
A114: F86658 | B114: 6
A115: F86691 | B115: 91
A116: F86692 | B116: 9
A117: F86698 | B117: 17
A118: F86702 | B118: 1
A119: F86703 | B119: 29
A120: F86707 | B120: 20
A121: F86731 | B121: 31
A122: Organisation Code | B122: 0
A123: Y00090 | B123: 5
A124: Y00312 | B124: 5
A125: Y00918 | B125: 67
A126: Y01280 | B126: 45
A127: Y01719 | B127: 45
A128: Y01795 | B128: 50
A129: Y02575 | B129: 77
A130: Y02973 | B130: 15
A131: Y02987 | B131: 248

Sheet Other Data
B2: Y00155 | C2: F86082 | D2: F86025 | E2: F86013 | F2: F86657
A4: Currently Registered Regular Patients | B4: =VLOOKUP(B$2,Sheet2!$B$4:$H$9,MATCH('Other Data'!$A4,Sheet2!$B$4:$H$4,0),FALSE) -> 10075 | C4: =VLOOKUP(C$2,Sheet2!$B$4:$H$9,MATCH('Other Data'!$A4,Sheet2!$B$4:$H$4,0),FALSE) -> 6052 | D4: =VLOOKUP(D$2,Sheet2!$B$4:$H$9,MATCH('Other Data'!$A4,Sheet2!$B$4:$H$4,0),FALSE) -> 17510 | E4: =VLOOKUP(E$2,Sheet2!$B$4:$H$9,MATCH('Other Data'!$A4,Sheet2!$B$4:$H$4,0),FALSE) -> 7149 | F4: =VLOOKUP(F$2,Sheet2!$B$4:$H$9,MATCH('Other Data'!$A4,Sheet2!$B$4:$H$4,0),FALSE) -> 8355
A5: POWC 01 Post-operative wound care 2022 | B5: =VLOOKUP(B$2,Sheet2!$B$4:$H$9,MATCH('Other Data'!$A5,Sheet2!$B$4:$H$4,0),FALSE) -> 1 | C5: =VLOOKUP(C$2,Sheet2!$B$4:$H$9,MATCH('Other Data'!$A5,Sheet2!$B$4:$H$4,0),FALSE) -> 21 | D5: =VLOOKUP(D$2,Sheet2!$B$4:$H$9,MATCH('Other Data'!$A5,Sheet2!$B$4:$H$4,0),FALSE) -> 90 | E5: =VLOOKUP(E$2,Sheet2!$B$4:$H$9,MATCH('Other Data'!$A5,Sheet2!$B$4:$H$4,0),FALSE) -> 27 | F5: =VLOOKUP(F$2,Sheet2!$B$4:$H$9,MATCH('Other Data'!$A5,Sheet2!$B$4:$H$4,0),FALSE) -> 27
A6: POWC 01 Post-operative wound care activity | B6: =VLOOKUP(B$2,Sheet2!$B$4:$H$9,MATCH('Other Data'!$A6,Sheet2!$B$4:$H$4,0),FALSE) ->  | C6: =VLOOKUP(C$2,Sheet2!$B$4:$H$9,MATCH('Other Data'!$A6,Sheet2!$B$4:$H$4,0),FALSE) ->  | D6: =VLOOKUP(D$2,Sheet2!$B$4:$H$9,MATCH('Other Data'!$A6,Sheet2!$B$4:$H$4,0),FALSE) ->  | E6: =VLOOKUP(E$2,Sheet2!$B$4:$H$9,MATCH('Other Data'!$A6,Sheet2!$B$4:$H$4,0),FALSE) ->  | F6: =VLOOKUP(F$2,Sheet2!$B$4:$H$9,MATCH('Other Data'!$A6,Sheet2!$B$4:$H$4,0),FALSE) -> 
A7: POWC 0101 Referral to tissue viability service | B7: =VLOOKUP(B$2,Sheet2!$B$4:$H$9,MATCH('Other Data'!$A7,Sheet2!$B$4:$H$4,0),FALSE) ->  | C7: =VLOOKUP(C$2,Sheet2!$B$4:$H$9,MATCH('Other Data'!$A7,Sheet2!$B$4:$H$4,0),FALSE) ->  | D7: =VLOOKUP(D$2,Sheet2!$B$4:$H$9,MATCH('Other Data'!$A7,Sheet2!$B$4:$H$4,0),FALSE) ->  | E7: =VLOOKUP(E$2,Sheet2!$B$4:$H$9,MATCH('Other Data'!$A7,Sheet2!$B$4:$H$4,0),FALSE) ->  | F7: =VLOOKUP(F$2,Sheet2!$B$4:$H$9,MATCH('Other Data'!$A7,Sheet2!$B$4:$H$4,0),FALSE) -> 
A8: POWC 0102 Refer to district nurse | B8: =VLOOKUP(B$2,Sheet2!$B$4:$H$9,MATCH('Other Data'!$A8,Sheet2!$B$4:$H$4,0),FALSE) -> 0 | C8: =VLOOKUP(C$2,Sheet2!$B$4:$H$9,MATCH('Other Data'!$A8,Sheet2!$B$4:$H$4,0),FALSE) -> 0 | D8: =VLOOKUP(D$2,Sheet2!$B$4:$H$9,MATCH('Other Data'!$A8,Sheet2!$B$4:$H$4,0),FALSE) -> 4 | E8: =VLOOKUP(E$2,Sheet2!$B$4:$H$9,MATCH('Other Data'!$A8,Sheet2!$B$4:$H$4,0),FALSE) -> 1 | F8: =VLOOKUP(F$2,Sheet2!$B$4:$H$9,MATCH('Other Data'!$A8,Sheet2!$B$4:$H$4,0),FALSE) -> 0
A9: POWC 0103 Orthopaedic referral | B9: =VLOOKUP(B$2,Sheet2!$B$4:$H$9,MATCH('Other Data'!$A9,Sheet2!$B$4:$H$4,0),FALSE) -> 1 | C9: =VLOOKUP(C$2,Sheet2!$B$4:$H$9,MATCH('Other Data'!$A9,Sheet2!$B$4:$H$4,0),FALSE) -> 0 | D9: =VLOOKUP(D$2,Sheet2!$B$4:$H$9,MATCH('Other Data'!$A9,Sheet2!$B$4:$H$4,0),FALSE) -> 4 | E9: =VLOOKUP(E$2,Sheet2!$B$4:$H$9,MATCH('Other Data'!$A9,Sheet2!$B$4:$H$4,0),FALSE) -> 2 | F9: =VLOOKUP(F$2,Sheet2!$B$4:$H$9,MATCH('Other Data'!$A9,Sheet2!$B$4:$H$4,0),FALSE) -> 1
A10: POWC 0104 Advice given about wound care | B10: =VLOOKUP(B$2,Sheet2!$B$4:$H$9,MATCH('Other Data'!$A10,Sheet2!$B$4:$H$4,0),FALSE) -> 0 | C10: =VLOOKUP(C$2,Sheet2!$B$4:$H$9,MATCH('Other Data'!$A10,Sheet2!$B$4:$H$4,0),FALSE) -> 21 | D10: =VLOOKUP(D$2,Sheet2!$B$4:$H$9,MATCH('Other Data'!$A10,Sheet2!$B$4:$H$4,0),FALSE) -> 89 | E10: =VLOOKUP(E$2,Sheet2!$B$4:$H$9,MATCH('Other Data'!$A10,Sheet2!$B$4:$H$4,0),FALSE) -> 1 | F10: =VLOOKUP(F$2,Sheet2!$B$4:$H$9,MATCH('Other Data'!$A10,Sheet2!$B$4:$H$4,0),FALSE) -> 0
A22: Row Labels | B22: Sum of Q4 Activity | C22: Sum of Q4 Patients | D22: Sum of #Tissue viability nurseQ4 | E22: Sum of #Refer to district nurseQ4 | F22: Sum of #Orthopaedic referralQ4 | G22: Sum of #Advice given about wound careQ4
A23: F86007 | B23: 57 | C23: 57 | D23: 0 | E23: 2 | F23: 1 | G23: 2
A24: F86057 | B24: 8 | C24: 8 | D24: 0 | E24: 0 | F24: 4 | G24: 0
A25: Grand Total | B25: 65 | C25: 65 | D25: 0 | E25: 2 | F25: 5 | G25: 2

Sheet Control Panel
A1: 2020-01-01 | E1: Search Title | F1: Report Title
E2: Currently Registered Regular Patients | F2: Currently Registered Regular Patients
E3: POWC 01 Post-operative wound care 2022 | F3: Patients with Post-operative wound care 2022-23
F4: Patients per 1000 patients
A5: RB-1 | B5: Cranbrook | E5: POWC 01 Post-operative wound care activity | F5: Post-operative wound care activity recorded 2022-23
A6: RB-2 | B6: Fairlop | F6: Activity per patient
A7: RB-3 | B7: Seven Kings | E7: POWC 0101 Referral to tissue viability service | F7: Referral to tissue viability service
A8: RB-4 | B8: Wanstead & Woodford | E8: POWC 0102 Refer to district nurse | F8: Refer to district nurse
A9: RB-5 | B9: Loxford | E9: POWC 0103 Orthopaedic referral | F9: Orthopaedic referral
A10: RB-6 | B10: NewCross Alliance | E10: POWC 0104 Advice given about wound care | F10: Advice given about wound care
A12: F86652 | B12: Drive Surgery | C12: RB | D12: Redbridge | E12: RB-1 | F12: Cranbrook
A13: F86702 | B13: St Clements Surgery | C13: RB | D13: Redbridge | E13: RB-1 | F13: Cranbrook
A14: Y00918 | B14: Granville Medical Centre | C14: RB | D14: Redbridge | E14: RB-1 | F14: Cranbrook
A15: F86042 | B15: Balfour Road Surgery | C15: RB | D15: Redbridge | E15: RB-1 | F15: Cranbrook
A16: F86698 | B16: Cranbrook Surgery | C16: RB | D16: Redbridge | E16: RB-1 | F16: Cranbrook
A17: F86008 | B17: Gants Hill Medical Centre | C17: RB | D17: Redbridge | E17: RB-1 | F17: Cranbrook
A18: F86703 | B18: Redbridge Surgery | C18: RB | D18: Redbridge | E18: RB-1 | F18: Cranbrook
A19: F86657 | B19: York Road Surgery | C19: RB | D19: Redbridge | E19: RB-1 | F19: Cranbrook
A20: F86081 | B20: Kenwood Medical Centre | C20: RB | D20: Redbridge | E20: RB-2 | F20: Fairlop
A21: F86083 | B21: Eastern Avenue Medical Centre | C21: RB | D21: Redbridge | E21: RB-2 | F21: Fairlop
A22: F86612 | B22: Fullwell Avenue Surgery | C22: RB | D22: Redbridge | E22: RB-2 | F22: Fairlop
A23: F86624 | B23: Heathcote Primary Care Centre | C23: RB | D23: Redbridge | E23: RB-2 | F23: Fairlop
A24: F86707 | B24: Fencepiece Road Medical Practice | C24: RB | D24: Redbridge | E24: RB-2 | F24: Fairlop
A25: F86057 | B25: The Willows Practice | C25: RB | D25: Redbridge | E25: RB-2 | F25: Fairlop
A26: F86007 | B26: Forest Edge Practice | C26: RB | D26: Redbridge | E26: RB-2 | F26: Fairlop
A27: F86009 | B27: The Palms Medical Centre | C27: RB | D27: Redbridge | E27: RB-3 | F27: Seven Kings
A28: F86087 | B28: Goodmayes Medical Centre | C28: RB | D28: Redbridge | E28: RB-3 | F28: Seven Kings
A29: F86637 | B29: Seven Kings Practice | C29: RB | D29: Redbridge | E29: RB-3 | F29: Seven Kings
A30: Y00090 | B30: Doctor's House | C30: RB | D30: Redbridge | E30: RB-3 | F30: Seven Kings
A31: F86034 | B31: Green Lane, Goodmayes Medical practice | C31: RB | D31: Redbridge | E31: RB-3 | F31: Seven Kings
A32: F86642 | B32: Castleton Road Surgery | C32: RB | D32: Redbridge | E32: RB-3 | F32: Seven Kings
A33: F86028 | B33: Chadwell Heath Surgery | C33: RB | D33: Redbridge | E33: RB-3 | F33: Seven Kings
A34: Y00155 | B34: Grove Surgery | C34: RB | D34: Redbridge | E34: RB-3 | F34: Seven Kings
A35: F86013 | B35: Broadway Surgery | C35: RB | D35: Redbridge | E35: RB-4 | F35: Wanstead & Woodford
A36: F86023 | B36: The Evergreen Practice | C36: RB | D36: Redbridge | E36: RB-4 | F36: Wanstead & Woodford
A37: F86032 | B37: Wanstead Place Surgery | C37: RB | D37: Redbridge | E37: RB-4 | F37: Wanstead & Woodford
A38: F86731 | B38: Aldersbrook Medical Centre | C38: RB | D38: Redbridge | E38: RB-4 | F38: Wanstead & Woodford
A39: F86066 | B39: Southdene Surgery | C39: RB | D39: Redbridge | E39: RB-4 | F39: Wanstead & Woodford
A40: F86641 | B40: Shrubberies Medical Centre | C40: RB | D40: Redbridge | E40: RB-4 | F40: Wanstead & Woodford
A41: F86020 | B41: Glebelands Practice | C41: RB | D41: Redbridge | E41: RB-4 | F41: Wanstead & Woodford
A42: F86064 | B42: Elmhurst Practice | C42: RB | D42: Redbridge | E42: RB-4 | F42: Wanstead & Woodford
A43: F86691 | B43: Clayhall Clinic | C43: RB | D43: Redbridge | E43: RB-4 | F43: Wanstead & Woodford
A44: F86012 | B44: Rydal Practice | C44: RB | D44: Redbridge | E44: RB-4 | F44: Wanstead & Woodford
A45: F86658 | B45: Queen Mary Practice | C45: RB | D45: Redbridge | E45: RB-4 | F45: Wanstead & Woodford
A46: F86022 | B46: Ilford Medical Centre | C46: RB | D46: Redbridge | E46: RB-5 | F46: Loxford
A47: Y02987 | B47: The Practice Loxford | C47: RB | D47: Redbridge | E47: RB-5 | F47: Loxford
A48: F86692 | B48: Mathukias Surgery | C48: RB | D48: Redbridge | E48: RB-5 | F48: Loxford
A49: F86082 | B49: Ilford Lane Surgery | C49: RB | D49: Redbridge | E49: RB-5 | F49: Loxford
A50: F86025 | B50: Oak Tree Medical Practice | C50: RB | D50: Redbridge | E50: RB-5 | F50: Loxford
A51: F86085 | B51: Hainault Surgery | C51: RB | D51: Redbridge | E51: RB-6 | F51: NewCross Alliance
A52: F86010 | B52: Fullwell Cross Medical Centre | C52: RB | D52: Redbridge | E52: RB-6 | F52: NewCross Alliance
A53: F86060 | B53: Newbury Group Practice | C53: RB | D53: Redbridge | E53: RB-6 | F53: NewCross Alliance

Sheet RB
A1: Rel_D | B1: Practice | C1: OrgID | D1: Currently Registered Regular Patients | E1: L&D Population | F1: POWC 0102 Refer to district nurse | G1: POWC 0103 Orthopaedic referral | H1: POWC 0104 Advice given about wound care | I1: POWC 01 Post-operative wound care 2022
A2: 2023-04-01 | B2: Grove Surgery | C2: Y00155 | D2: 10075 | E2: 15096 | G2: 1 | I2: 1
A3: 2023-04-01 | B3: Ilford Lane Surgery | C3: F86082 | D3: 6052 | E3: 9513 | H3: 21 | I3: 21
A4: 2023-04-01 | B4: Oak Tree Medical Practice | C4: F86025 | D4: 17510 | E4: 23553 | F4: 4 | G4: 4 | H4: 89 | I4: 90
A5: 2023-04-01 | B5: The Broadway Surgery | C5: F86013 | D5: 7149 | E5: 11242 | F5: 1 | G5: 2 | H5: 1 | I5: 27
A6: 2023-04-01 | B6: York Surgery | C6: F86657 | D6: 8355 | E6: 13430 | G6: 1 | I6: 27

Sheet Sheet2
B4: OrgID | C4: Currently Registered Regular Patients | D4: L&D Population | E4: POWC 0102 Refer to district nurse | F4: POWC 0103 Orthopaedic referral | G4: POWC 0104 Advice given about wound care | H4: POWC 01 Post-operative wound care 2022
B5: Y00155 | C5: 10075 | D5: 15096 | F5: 1 | H5: 1
B6: F86082 | C6: 6052 | D6: 9513 | G6: 21 | H6: 21
B7: F86025 | C7: 17510 | D7: 23553 | E7: 4 | F7: 4 | G7: 89 | H7: 90
B8: F86013 | C8: 7149 | D8: 11242 | E8: 1 | F8: 2 | G8: 1 | H8: 27
B9: F86657 | C9: 8355 | D9: 13430 | F9: 1 | H9: 27
B14: F86692 | C14: =COUNTIF($B$14:$B$669,B14) -> 1
B15: F86009 | C15: 14
B16: F86642 | C16: 3
B17: F86060 | C17: 1
B18: F86087 | C18: 6
B19: F86087 | C19: 6
B20: F86007 | C20: 88
B21: Y02987 | C21: 67
B22: F86028 | C22: 19
B23: F86081 | C23: 5
B24: F86707 | C24: 13
B25: F86707 | C25: 13
B26: F86637 | C26: 3
B27: F86637 | C27: 3
B28: F86057 | C28: 10
B29: F86007 | C29: 88
B30: F86637 | C30: 3
B31: F86057 | C31: 10
B32: F86703 | C32: 14
B33: F86703 | C33: 14
B34: F86703 | C34: 14
B35: F86703 | C35: 14
B36: F86652 | C36: 7
B37: F86658 | C37: 2
B38: F86087 | C38: 6
B39: F86087 | C39: 6
B40: F86087 | C40: 6
B41: F86023 | C41: 54
B42: F86023 | C42: 54
B43: F86023 | C43: 54
B44: F86081 | C44: 5
B45: F86083 | C45: 11
B46: F86020 | C46: 12
B47: F86642 | C47: 3
B48: F86642 | C48: 3
B49: F86083 | C49: 11
B50: F86083 | C50: 11
B51: F86083 | C51: 11
B52: F86083 | C52: 11
B53: F86641 | C53: 8
B54: F86012 | C54: 24
B55: F86012 | C55: 24
B56: F86707 | C56: 13
B57: F86707 | C57: 13
B58: F86087 | C58: 6
B59: F86691 | C59: 19
B60: F86066 | C60: 47
B61: F86066 | C61: 47
B62: F86066 | C62: 47
B63: F86008 | C63: 22
B64: F86083 | C64: 11
B65: F86083 | C65: 11
B66: F86028 | C66: 19
B67: F86028 | C67: 19
B68: F86057 | C68: 10
B69: F86731 | C69: 11
B70: F86731 | C70: 11
B71: F86731 | C71: 11
B72: F86731 | C72: 11
B73: F86731 | C73: 11
B74: F86731 | C74: 11
B75: F86731 | C75: 11
B76: F86066 | C76: 47
B77: F86085 | C77: 6
B78: F86020 | C78: =COUNTIF($B$14:$B$669,B78) -> 12
B79: F86020 | C79: 12
B80: F86020 | C80: 12
B81: F86020 | C81: 12
B82: F86020 | C82: 12
B83: F86020 | C83: 12
B84: F86020 | C84: 12
B85: F86020 | C85: 12
B86: F86020 | C86: 12
B87: F86020 | C87: 12
B88: F86020 | C88: 12
B89: F86698 | C89: 4
B90: F86698 | C90: 4
B91: F86698 | C91: 4
B92: F86066 | C92: 47
B93: F86083 | C93: 11
B94: F86083 | C94: 11
B95: F86083 | C95: 11
B96: F86731 | C96: 11
B97: F86731 | C97: 11
B98: Y02987 | C98: 67
B99: Y02987 | C99: 67
B100: Y02987 | C100: 67
B101: F86081 | C101: 5
B102: F86081 | C102: 5
B103: F86081 | C103: 5
B104: F86731 | C104: 11
B105: F86731 | C105: 11
B106: F86023 | C106: 54
B107: F86023 | C107: 54
B108: F86023 | C108: 54
B109: F86023 | C109: 54
B110: F86023 | C110: 54
B111: F86023 | C111: 54
B112: F86612 | C112: 4
B113: F86612 | C113: 4
B114: F86612 | C114: 4
B115: F86612 | C115: 4
B116: F86707 | C116: 13
B117: F86707 | C117: 13
B118: F86707 | C118: 13
B119: F86707 | C119: 13
B120: F86707 | C120: 13
B121: F86707 | C121: 13
B122: F86707 | C122: 13
B123: F86707 | C123: 13
B124: F86707 | C124: 13
B125: F86028 | C125: 19
B126: F86028 | C126: 19
B127: F86028 | C127: 19
B128: F86028 | C128: 19
B129: F86028 | C129: 19
B130: F86028 | C130: 19
B131: F86028 | C131: 19
B132: F86028 | C132: 19
B133: F86028 | C133: 19
B134: F86028 | C134: 19
B135: F86028 | C135: 19
B136: F86028 | C136: 19
B137: F86028 | C137: 19
B138: F86028 | C138: 19
B139: F86028 | C139: 19
B140: F86028 | C140: 19
B141: F86057 | C141: 10
B142: F86057 | C142: =COUNTIF($B$14:$B$669,B142) -> 10
B143: F86057 | C143: 10
B144: F86057 | C144: 10
B145: F86007 | C145: 88
B146: F86007 | C146: 88
B147: F86641 | C147: 8
B148: F86641 | C148: 8
B149: F86641 | C149: 8
B150: F86641 | C150: 8
B151: Y00918 | C151: 19
B152: Y00918 | C152: 19
B153: Y00918 | C153: 19
B154: Y00918 | C154: 19
B155: Y00918 | C155: 19
B156: Y00918 | C156: 19
B157: Y00918 | C157: 19
B158: Y00918 | C158: 19
B159: Y00918 | C159: 19
B160: Y00918 | C160: 19
B161: Y00918 | C161: 19
B162: Y00918 | C162: 19
B163: Y00918 | C163: 19
B164: Y00918 | C164: 19
B165: F86064 | C165: 8
B166: F86064 | C166: 8
B167: F86698 | C167: 4
B168: F86032 | C168: 28
B169: Y00090 | C169: 4
B170: F86641 | C170: 8
B171: F86641 | C171: 8
B172: F86641 | C172: 8
B173: F86652 | C173: 7
B174: F86010 | C174: 21
B175: F86009 | C175: 14
B176: F86010 | C176: 21
B177: F86691 | C177: 19
B178: F86691 | C178: 19
B179: F86691 | C179: 19
B180: Y02987 | C180: 67
B181: Y02987 | C181: 67
B182: Y02987 | C182: 67
B183: Y02987 | C183: 67
B184: Y02987 | C184: 67
B185: Y02987 | C185: 67
B186: Y02987 | C186: 67
B187: Y02987 | C187: 67
B188: Y02987 | C188: 67
B189: Y02987 | C189: 67
B190: Y02987 | C190: 67
B191: Y02987 | C191: 67
B192: F86691 | C192: 19
B193: F86691 | C193: 19
B194: F86691 | C194: 19
B195: F86691 | C195: 19
B196: F86042 | C196: 23
B197: F86042 | C197: 23
B198: F86042 | C198: 23
B199: F86042 | C199: 23
B200: F86042 | C200: 23
B201: F86042 | C201: 23
B202: F86042 | C202: 23
B203: F86042 | C203: 23
B204: F86042 | C204: 23
B205: F86042 | C205: 23
B206: F86042 | C206: =COUNTIF($B$14:$B$669,B206) -> 23
B207: F86042 | C207: 23
... 384 more rows
